Body Name,Body,Service Division Label,Service Division Code,Organisational Unit,Expenditure Category,Expenditure Code,CIPFA detailed expediture type,CIPFA detailed expediture code,Narrative,Date,Transaction number,Net Amount,Capital and Revenue,Supplier Name,Supplier ID,,
Chorley Borough Council,http://statistics.data.gov.uk/id/local-authority/30UE,Business Support,1095,Commercial & Property,Building Services Maintenance Other,20076,Fixtures and Fittings,5010,Per your quotation EN7192/2 -  Road Markings at Strawberry Fields,06/10/2021,0161130,650.00,Revenue,A1 Streamline Road Markings LTD,21544,,
Chorley Borough Council,http://statistics.data.gov.uk/id/local-authority/30UE,Central Support Services,1009,Customer & Digital,Professional Fees,14011,Direct Employee Expenses,5001,Council Tax reduction update service support for 2022 scheme,06/10/2021,0160757,500.00,Revenue,ACS Ltd,56512,,
Chorley Borough Council,http://statistics.data.gov.uk/id/local-authority/30UE,Central Support Services,1009,Commercial & Property,Planned Maintenance,20006,Repairs Maintenance & Alts,5005,"Brinscall Baths, Replacement of the Twinflex Fire Alarm system, for Alarmsense Fire Alarm System",27/10/2021,0162053,"4,305.00",Revenue,Alert Fire and Security Ltd,82181,,
Chorley Borough Council,http://statistics.data.gov.uk/id/local-authority/30UE,Central Support Services,1009,Customer & Digital,Bank Charges,40151,Miscellaneous Expenses,5034,add ac fee,13/10/2021,0161403,10.00,Revenue,Allpay Net Ltd,17242,,
Chorley Borough Council,http://statistics.data.gov.uk/id/local-authority/30UE,Central Support Services,1009,Customer & Digital,Bank Charges,40151,Miscellaneous Expenses,5034,post office,13/10/2021,0161403,629.28,Revenue,Allpay Net Ltd,17242,,
Chorley Borough Council,http://statistics.data.gov.uk/id/local-authority/30UE,Central Support Services,1009,Customer & Digital,Bank Charges,40151,Miscellaneous Expenses,5034,paypoint,13/10/2021,0161403,213.28,Revenue,Allpay Net Ltd,17242,,
Chorley Borough Council,http://statistics.data.gov.uk/id/local-authority/30UE,Central Support Services,1009,Customer & Digital,Bank Charges,40151,Miscellaneous Expenses,5034,web,13/10/2021,0161403,46.00,Revenue,Allpay Net Ltd,17242,,
Chorley Borough Council,http://statistics.data.gov.uk/id/local-authority/30UE,Central Support Services,1009,Communities,External Contractor,40198,Miscellaneous Expenses,5034,Pest Control External Contractor Costs,06/10/2021,0159627,"1,620.71",Revenue,ALPHA PEST CONTROL LIMITED,18208,,
Chorley Borough Council,http://statistics.data.gov.uk/id/local-authority/30UE,Central Support Services,1009,Communities,External Contractor,40198,Miscellaneous Expenses,5034,Pest Control External Contractor Costs,06/10/2021,0159820,"1,259.18",Revenue,ALPHA PEST CONTROL LIMITED,18208,,
Chorley Borough Council,http://statistics.data.gov.uk/id/local-authority/30UE,Central Support Services,1009,Communities,External Contractor,40198,Miscellaneous Expenses,5034,Pest Control External Contractor Costs,06/10/2021,0160074,"2,045.89",Revenue,ALPHA PEST CONTROL LIMITED,18208,,
Chorley Borough Council,http://statistics.data.gov.uk/id/local-authority/30UE,Central Support Services,1009,Communities,External Contractor,40198,Miscellaneous Expenses,5034,Pest Control External Contractor Costs,06/10/2021,0160302,"2,898.66",Revenue,ALPHA PEST CONTROL LIMITED,18208,,
Chorley Borough Council,http://statistics.data.gov.uk/id/local-authority/30UE,Central Support Services,1009,Communities,External Contractor,40198,Miscellaneous Expenses,5034,Pest Control External Contractor Costs,06/10/2021,0160412,"1,713.77",Revenue,ALPHA PEST CONTROL LIMITED,18208,,
Chorley Borough Council,http://statistics.data.gov.uk/id/local-authority/30UE,Central Support Services,1009,Communities,External Contractor,40198,Miscellaneous Expenses,5034,Pest Control External Contractor Costs,06/10/2021,0160641,"1,747.04",Revenue,ALPHA PEST CONTROL LIMITED,18208,,
Chorley Borough Council,http://statistics.data.gov.uk/id/local-authority/30UE,Central Support Services,1009,Communities,External Contractor,40198,Miscellaneous Expenses,5034,Pest Control External Contractor Costs,20/10/2021,0161513,770.78,Revenue,ALPHA PEST CONTROL LIMITED,18208,,
Chorley Borough Council,http://statistics.data.gov.uk/id/local-authority/30UE,Corporate Management,1008,Policy & Governance,Car Leasing Payment,14100,Direct Employee Expenses,5001,VIN REDACTED,13/10/2021,0161414,367.35,Revenue,Alphabet (Uk) Fleet Management Ltd,16651,,
Chorley Borough Council,http://statistics.data.gov.uk/id/local-authority/30UE,Corporate Management,1008,Policy & Governance,Car Leasing Payment,14100,Direct Employee Expenses,5001,vat,13/10/2021,0161414,32.55,Revenue,Alphabet (Uk) Fleet Management Ltd,16651,,
Chorley Borough Council,http://statistics.data.gov.uk/id/local-authority/30UE,Control Accounts,Control,Policy & Governance,Manual Control Account,00001,Balance Sheet,Balance,-vat,13/10/2021,0161414,-32.55,Revenue,Alphabet (Uk) Fleet Management Ltd,16651,,
Chorley Borough Council,http://statistics.data.gov.uk/id/local-authority/30UE,Development Control,1091,Policy & Governance,Car Leasing Payment,14100,Direct Employee Expenses,5001,VIN REDACTED,13/10/2021,0161414,250.79,Revenue,Alphabet (Uk) Fleet Management Ltd,16651,,
Chorley Borough Council,http://statistics.data.gov.uk/id/local-authority/30UE,Development Control,1091,Policy & Governance,Car Leasing Payment,14100,Direct Employee Expenses,5001,vat,13/10/2021,0161414,21.23,Revenue,Alphabet (Uk) Fleet Management Ltd,16651,,
Chorley Borough Council,http://statistics.data.gov.uk/id/local-authority/30UE,Control Accounts,Control,Policy & Governance,Manual Control Account,00001,Balance Sheet,Balance,-vat,13/10/2021,0161414,-21.23,Revenue,Alphabet (Uk) Fleet Management Ltd,16651,,
Chorley Borough Council,http://statistics.data.gov.uk/id/local-authority/30UE,Central Support Services,1009,Commercial & Property,General Repairs - Reactive,20004,Repairs Maintenance & Alts,5005,Cotswold House - reactive repair works,06/10/2021,0159790,348.90,Revenue,Amalgamated Ltd,78289,,
Chorley Borough Council,http://statistics.data.gov.uk/id/local-authority/30UE,Recreation & Sport,1037,Commercial & Property,General Repairs - Reactive,20004,Repairs Maintenance & Alts,5005,"ASLC inv100301 TF13011, Fire Alarm System, Completion Date: 30/06/21, Staff have reported the manual call point",06/10/2021,0160972,"1,052.80",Revenue,Amalgamated Ltd,78289,,
Chorley Borough Council,http://statistics.data.gov.uk/id/local-authority/30UE,Recreation & Sport,1037,Commercial & Property,General Repairs - Reactive,20004,Repairs Maintenance & Alts,5005,"ASLC inv100302 TF13055, Intruder Alarm System, Completion Date: 30/06/21, Door contact zone 12 in store next to caf� kitchen",06/10/2021,0160977,327.10,Revenue,Amalgamated Ltd,78289,,
Chorley Borough Council,http://statistics.data.gov.uk/id/local-authority/30UE,Central Support Services,1009,Customer & Digital,Computer Equipment-Purchase,40098,Communication and Computing,5028,Additional network points All Seasons,13/10/2021,0161222,250.00,Revenue,Ampec,76813,,
Chorley Borough Council,http://statistics.data.gov.uk/id/local-authority/30UE,Central Support Services,1009,Policy & Governance,Refreshments,40036,Catering,5024,"Sanitisation, provision of water and hire of machines for all Council sites - 2021/22",13/10/2021,0161469,529.93,Revenue,Angel Springs Ltd T/A Waterlogic UK,77689,,
Chorley Borough Council,http://statistics.data.gov.uk/id/local-authority/30UE,Recreation & Sport,1037,Commercial & Property,Planned Maintenance,20006,Repairs Maintenance & Alts,5005,"All Seasons, supply and fit batteries to pool lift as per quote 3303865705, labour 1h, Batteries 2, -10% discount",06/10/2021,0160786,256.00,Revenue,Arjo UK,81014,,
Chorley Borough Council,http://statistics.data.gov.uk/id/local-authority/30UE,Service Management & Support,1009,Customer & Digital,Vehicles and Plant Maintenance,30045,Direct Transport Costs,5016,"FL66 OZU, Clutch master cylinder",20/10/2021,0160884,321.75,Revenue,Autofit,78140,,
Chorley Borough Council,http://statistics.data.gov.uk/id/local-authority/30UE,Service Management & Support,1009,Customer & Digital,Vehicles and Plant Maintenance,30045,Direct Transport Costs,5016,"NJ10 OTW, 3 piece clutch kit, Recon gearbox, Repair lower gearbox mount",20/10/2021,0160918,936.54,Revenue,Autofit,78140,,
Chorley Borough Council,http://statistics.data.gov.uk/id/local-authority/30UE,Service Management & Support,1009,Customer & Digital,Hire Of Vehicles and Plant,30028,Contrct Hire & Operating Lease,5018,"ITT Invitation to Tender, servicing and maintenance of Grounds Maintenance Machinery, John Deere 1580, Wessex gang mower",20/10/2021,0160898,"1,242.40",Revenue,Balmers Garden Machinery,17075,,
Chorley Borough Council,http://statistics.data.gov.uk/id/local-authority/30UE,Service Management & Support,1009,Customer & Digital,Hire Of Vehicles and Plant,30028,Contrct Hire & Operating Lease,5018,"ITT Invitation to Tender, servicing and maintenance of Grounds Maintenance Machinery, John Deere 1580, Wessex gang mower",20/10/2021,0160917,"1,242.40",Revenue,Balmers Garden Machinery,17075,,
Chorley Borough Council,http://statistics.data.gov.uk/id/local-authority/30UE,Service Management & Support,1009,Customer & Digital,Supplies-Grounds Maintenance,40025,"Equipment, Furniture & Materia",5023,"2 x 2m Cupressus Sempervirens to be delivered to Chorley Council Depot, Bengal St, Chorley PR7 1SA on 13th September",20/10/2021,0161068,300.00,Revenue,Bannister Hall Ltd,22515,,
Chorley Borough Council,http://statistics.data.gov.uk/id/local-authority/30UE,Control Accounts,Control,Policy & Governance,General Balances,00100,Balance Sheet,Balance,28 aug 2021,27/10/2021,0161203,"3,478.76",Revenue,Barclaycard Commercial,59848,,
Chorley Borough Council,http://statistics.data.gov.uk/id/local-authority/30UE,Control Accounts,Control,Policy & Governance,General Balances,00100,Balance Sheet,Balance,28 jul 2021,27/10/2021,0161204,"5,145.65",Revenue,Barclaycard Commercial,59848,,
Chorley Borough Council,http://statistics.data.gov.uk/id/local-authority/30UE,Control Accounts,Control,Policy & Governance,General Balances,00100,Balance Sheet,Balance,28 jun 2021,27/10/2021,0161205,"4,231.06",Revenue,Barclaycard Commercial,59848,,
Chorley Borough Council,http://statistics.data.gov.uk/id/local-authority/30UE,Corporate Management,1008,Policy & Governance,Bank Charges,40151,Miscellaneous Expenses,5034,31 july,27/10/2021,0160106,15.00,Revenue,Barclaycard Merchant Services,61601,,
Chorley Borough Council,http://statistics.data.gov.uk/id/local-authority/30UE,Corporate Management,1008,Policy & Governance,Bank Charges,40151,Miscellaneous Expenses,5034,exempt,27/10/2021,0160106,"2,438.34",Revenue,Barclaycard Merchant Services,61601,,
Chorley Borough Council,http://statistics.data.gov.uk/id/local-authority/30UE,Corporate Management,1008,Policy & Governance,Bank Charges,40151,Miscellaneous Expenses,5034,3 aug 21,27/10/2021,0161207,15.00,Revenue,Barclaycard Merchant Services,61601,,
Chorley Borough Council,http://statistics.data.gov.uk/id/local-authority/30UE,Corporate Management,1008,Policy & Governance,Bank Charges,40151,Miscellaneous Expenses,5034,,27/10/2021,0161207,"2,558.40",Revenue,Barclaycard Merchant Services,61601,,
Chorley Borough Council,http://statistics.data.gov.uk/id/local-authority/30UE,Corporate Management,1008,Policy & Governance,Bank Charges,40151,Miscellaneous Expenses,5034,,27/10/2021,0161291,15.00,Revenue,Barclaycard Merchant Services,61601,,
Chorley Borough Council,http://statistics.data.gov.uk/id/local-authority/30UE,Corporate Management,1008,Policy & Governance,Bank Charges,40151,Miscellaneous Expenses,5034,,27/10/2021,0161291,"1,360.35",Revenue,Barclaycard Merchant Services,61601,,
Chorley Borough Council,http://statistics.data.gov.uk/id/local-authority/30UE,Corporate Management,1008,Policy & Governance,Bank Charges,40151,Miscellaneous Expenses,5034,,27/10/2021,0161292,232.00,Revenue,Barclaycard Merchant Services,61601,,
Chorley Borough Council,http://statistics.data.gov.uk/id/local-authority/30UE,Corporate Management,1008,Policy & Governance,Bank Charges,40151,Miscellaneous Expenses,5034,,27/10/2021,0161292,137.74,Revenue,Barclaycard Merchant Services,61601,,
Chorley Borough Council,http://statistics.data.gov.uk/id/local-authority/30UE,Corporate Management,1008,Policy & Governance,Bank Charges,40151,Miscellaneous Expenses,5034,30 sept,27/10/2021,0161956,232.00,Revenue,Barclaycard Merchant Services,61601,,
Chorley Borough Council,http://statistics.data.gov.uk/id/local-authority/30UE,Corporate Management,1008,Policy & Governance,Bank Charges,40151,Miscellaneous Expenses,5034,30 sept,27/10/2021,0161956,43.72,Revenue,Barclaycard Merchant Services,61601,,
Chorley Borough Council,http://statistics.data.gov.uk/id/local-authority/30UE,Corporate Management,1008,Policy & Governance,Bank Charges,40151,Miscellaneous Expenses,5034,30 sept,27/10/2021,0161957,15.00,Revenue,Barclaycard Merchant Services,61601,,
Chorley Borough Council,http://statistics.data.gov.uk/id/local-authority/30UE,Corporate Management,1008,Policy & Governance,Bank Charges,40151,Miscellaneous Expenses,5034,30 sept,27/10/2021,0161957,"1,434.20",Revenue,Barclaycard Merchant Services,61601,,
Chorley Borough Council,http://statistics.data.gov.uk/id/local-authority/30UE,Corporate Management,1008,Policy & Governance,Bank Charges,40151,Miscellaneous Expenses,5034,30 sept,27/10/2021,0161958,15.00,Revenue,Barclaycard Merchant Services,61601,,
Chorley Borough Council,http://statistics.data.gov.uk/id/local-authority/30UE,Corporate Management,1008,Policy & Governance,Bank Charges,40151,Miscellaneous Expenses,5034,30 sept,27/10/2021,0161958,546.02,Revenue,Barclaycard Merchant Services,61601,,
Chorley Borough Council,http://statistics.data.gov.uk/id/local-authority/30UE,Culture & Heritage,1036,Policy & Governance,Miscellaneous Expenses,40200,Miscellaneous Expenses,5034,G7 Speakers conference compensation,20/10/2021,0161237,"5,230.30",Revenue,Barrica Wines Limited,81102,,
Chorley Borough Council,http://statistics.data.gov.uk/id/local-authority/30UE,Corporate Management,1008,Policy & Governance,Miscellaneous Expenses,40200,Miscellaneous Expenses,5034,"Extension of Radio advert on Rock FM to promote Chorley town centre, encourage visitors now that businesses have reopened",20/10/2021,0161604,"1,071.34",Revenue,Bauer Active Ltd,50574,,
Chorley Borough Council,http://statistics.data.gov.uk/id/local-authority/30UE,Corporate Management,1008,Policy & Governance,Miscellaneous Expenses,40200,Miscellaneous Expenses,5034,Rock FM & Greatest Hits 6 weeks Radio Campaign - 3 weeks Chorley Flower Show & 3 weeks town centre offering promo,20/10/2021,0161610,"1,358.66",Revenue,Bauer Active Ltd,50574,,
Chorley Borough Council,http://statistics.data.gov.uk/id/local-authority/30UE,Corporate Management,1008,Policy & Governance,Miscellaneous Expenses,40200,Miscellaneous Expenses,5034,Rock FM & Greatest Hits 6 weeks Radio Campaign - 3 weeks Chorley Flower Show & 3 weeks town centre offering promo,20/10/2021,0161833,"2,711.16",Revenue,Bauer Active Ltd,50574,,
Chorley Borough Council,http://statistics.data.gov.uk/id/local-authority/30UE,Development Control,1091,Policy & Governance,Computer Software-Maintenance,40107,Communication and Computing,5028,Heritage Services from April 2021 to March 2022,06/10/2021,0160593,"3,037.40",Revenue,Blackburn with Darwen Borough Council,21000,,
Chorley Borough Council,http://statistics.data.gov.uk/id/local-authority/30UE,Central Support Services,1009,Policy & Governance,External Contractor,40198,Miscellaneous Expenses,5034,Payroll Services Contract for 2020/21,20/10/2021,0160717,"6,076.98",Revenue,Blackpool Borough Council,16518,,
Chorley Borough Council,http://statistics.data.gov.uk/id/local-authority/30UE,Elections,1012,Policy & Governance,Rent/Hire Of Premises,20017,Premises Rents,5007,room hire for polling station 6 May 2021,13/10/2021,0161387,320.00,Revenue,Bretherton Congregational Church Hall,53724,,
Chorley Borough Council,http://statistics.data.gov.uk/id/local-authority/30UE,Business Support,1095,Commercial & Property,Grants To Other Organisations,40127,Grants and Subscriptions,5031,grant for works ADDRESS REDACTED,13/10/2021,0161336,"15,923.03",Revenue,Bugle Inn Motor Company Ltd,21977,,
Chorley Borough Council,http://statistics.data.gov.uk/id/local-authority/30UE,Culture & Heritage,1036,Policy & Governance,Maintenance of Building Services,20070,Fixtures and Fittings,5010,Scaffolding works at Astley Hall,27/10/2021,0161986,"9,280.50",Revenue,Bullen Conservation Ltd,68424,,
Chorley Borough Council,http://statistics.data.gov.uk/id/local-authority/30UE,Capital,Capital,Commercial & Property,Main Contractor,03007,Capital Expenditure,Capital,Astley Hall redecoration works as agreed by NAME REDACTED Quotation - Q6200,27/10/2021,0162002,"24,717.17",Capital,Bullen Conservation Ltd,68424,,
Chorley Borough Council,http://statistics.data.gov.uk/id/local-authority/30UE,Capital,Capital,Commercial & Property,Main Contractor,03007,Capital Expenditure,Capital,Astley Hall Renovation / Conservation Project,27/10/2021,0162109,"31,033.40",Capital,Bullen Conservation Ltd,68424,,
Chorley Borough Council,http://statistics.data.gov.uk/id/local-authority/30UE,Capital,Capital,Communities,Grants,03002,Capital Expenditure,Capital,ADDRESS REDACTED,06/10/2021,0161296,300.00,Capital,NAME REDACTED,16579,,
Chorley Borough Council,http://statistics.data.gov.uk/id/local-authority/30UE,Culture & Heritage,1036,Policy & Governance,Miscellaneous Expenses,40200,Miscellaneous Expenses,5034,G7 Speakers conference compensation,20/10/2021,0161390,"5,428.57",Revenue,Cafe Ambio,22328,,
Chorley Borough Council,http://statistics.data.gov.uk/id/local-authority/30UE,Homelessness,1075,Communities,Professional Fees,40063,Services,5027,Quarter 2 (July - September 2021) Provision of the Accommodation Finding and Resettlement Support Service,13/10/2021,0161395,"7,286.50",Revenue,Calico Enterprise,73338,,
Chorley Borough Council,http://statistics.data.gov.uk/id/local-authority/30UE,Central Support Services,1009,Policy & Governance,Employee Related Insurance,18003,Indirect Employee Expenses,5002,7/10/21,27/10/2021,0161972,"1,000.00",Revenue,Canada Life,22284,,
Chorley Borough Council,http://statistics.data.gov.uk/id/local-authority/30UE,Central Support Services,1009,Customer & Digital,Miscellaneous Expenses,40200,Miscellaneous Expenses,5034,,06/10/2021,0161297,"1,114.75",Revenue,Canon (UK) Ltd,17492,,
Chorley Borough Council,http://statistics.data.gov.uk/id/local-authority/30UE,Economic Development,1096,Policy & Governance,Car Leasing Payment,14100,Direct Employee Expenses,5001,"Car Lease Quote, NAME REDACTED, Car Spec: AUDI A3 - 35 TFSI Edition 1, Period: 3 Years. Emissions: Not known",13/10/2021,0161418,"3,457.68",Revenue,Car Hire (day of Swansea) Ltd t/a Days Fleet,82001,,
Chorley Borough Council,http://statistics.data.gov.uk/id/local-authority/30UE,Building Control,1090,Customer & Digital,Agency Staff,13000,Direct Employee Expenses,5001,Agency fees for NAME REDACTED,06/10/2021,0161254,"1,807.00",Revenue,Carrington West Ltd,83124,,
Chorley Borough Council,http://statistics.data.gov.uk/id/local-authority/30UE,Building Control,1090,Customer & Digital,Agency Staff,13000,Direct Employee Expenses,5001,Agency fees for NAME REDACTED,06/10/2021,0161255,"1,768.00",Revenue,Carrington West Ltd,83124,,
Chorley Borough Council,http://statistics.data.gov.uk/id/local-authority/30UE,Building Control,1090,Customer & Digital,Agency Staff,13000,Direct Employee Expenses,5001,Agency fees for NAME REDACTED,20/10/2021,0161581,"1,703.00",Revenue,Carrington West Ltd,83124,,
Chorley Borough Council,http://statistics.data.gov.uk/id/local-authority/30UE,Corporate Management,1008,Policy & Governance,Agency Staff,13000,Direct Employee Expenses,5001,NAME REDACTED 8 days from 26/7/21,06/10/2021,0159744,"1,925.00",Revenue,Castlefield Recruitment Limited,80454,,
Chorley Borough Council,http://statistics.data.gov.uk/id/local-authority/30UE,Central Support Services,1009,Policy & Governance,Agency Staff,13000,Direct Employee Expenses,5001,NAME REDACTED - 6 months,13/10/2021,0161347,"1,890.00",Revenue,Castlefield Recruitment Limited,80454,,
Chorley Borough Council,http://statistics.data.gov.uk/id/local-authority/30UE,Central Support Services,1009,Policy & Governance,Agency Staff,13000,Direct Employee Expenses,5001,NAME REDACTED,13/10/2021,0161394,"1,650.00",Revenue,Castlefield Recruitment Limited,80454,,
Chorley Borough Council,http://statistics.data.gov.uk/id/local-authority/30UE,Central Support Services,1009,Policy & Governance,Agency Staff,13000,Direct Employee Expenses,5001,NAME REDACTED,13/10/2021,0161451,"1,650.00",Revenue,Castlefield Recruitment Limited,80454,,
Chorley Borough Council,http://statistics.data.gov.uk/id/local-authority/30UE,Central Support Services,1009,Policy & Governance,Agency Staff,13000,Direct Employee Expenses,5001,NAME REDACTED - 6 months,13/10/2021,0161458,"2,100.00",Revenue,Castlefield Recruitment Limited,80454,,
Chorley Borough Council,http://statistics.data.gov.uk/id/local-authority/30UE,Central Support Services,1009,Policy & Governance,Agency Staff,13000,Direct Employee Expenses,5001,NAME REDACTED - 6 months,13/10/2021,0161464,"1,680.00",Revenue,Castlefield Recruitment Limited,80454,,
Chorley Borough Council,http://statistics.data.gov.uk/id/local-authority/30UE,Central Support Services,1009,Policy & Governance,Agency Staff,13000,Direct Employee Expenses,5001,NAME REDACTED,20/10/2021,0161607,"1,650.00",Revenue,Castlefield Recruitment Limited,80454,,
Chorley Borough Council,http://statistics.data.gov.uk/id/local-authority/30UE,Central Support Services,1009,Policy & Governance,Agency Staff,13000,Direct Employee Expenses,5001,NAME REDACTED - 6 months,27/10/2021,0162014,"2,100.00",Revenue,Castlefield Recruitment Limited,80454,,
Chorley Borough Council,http://statistics.data.gov.uk/id/local-authority/30UE,Central Support Services,1009,Policy & Governance,Agency Staff,13000,Direct Employee Expenses,5001,NAME REDACTED for the period 05/10/2021 - 28/10/2021,27/10/2021,0162047,"1,650.00",Revenue,Castlefield Recruitment Limited,80454,,
Chorley Borough Council,http://statistics.data.gov.uk/id/local-authority/30UE,Central Support Services,1009,Commercial & Property,Planned Maintenance,20006,Repairs Maintenance & Alts,5005,"Automatic Door Service, Civic Offices, 2x Swing door pairs, 3x Single swing doors",20/10/2021,0161851,190.00,Revenue,CC Door Systems Ltd,81624,,
Chorley Borough Council,http://statistics.data.gov.uk/id/local-authority/30UE,Central Support Services,1009,Commercial & Property,Planned Maintenance,20006,Repairs Maintenance & Alts,5005,"Automatic Door Service, Town Hall, 2x Single swing doors",20/10/2021,0161851,130.00,Revenue,CC Door Systems Ltd,81624,,
Chorley Borough Council,http://statistics.data.gov.uk/id/local-authority/30UE,Central Support Services,1009,Commercial & Property,Planned Maintenance,20006,Repairs Maintenance & Alts,5005,"Automatic Door Service, Astley Coach House, 2x Automatic swing doors",20/10/2021,0161851,150.00,Revenue,CC Door Systems Ltd,81624,,
Chorley Borough Council,http://statistics.data.gov.uk/id/local-authority/30UE,Central Support Services,1009,Commercial & Property,Planned Maintenance,20006,Repairs Maintenance & Alts,5005,"Automatic Door Service, Primrose Gardens, 2x Swing door pair, 1x Single swing door",20/10/2021,0161851,160.00,Revenue,CC Door Systems Ltd,81624,,
Chorley Borough Council,http://statistics.data.gov.uk/id/local-authority/30UE,Business Support,1095,Commercial & Property,Planned Maintenance,20006,Repairs Maintenance & Alts,5005,"Automatic Door Service, Strawberry Fields, 1x Bi part sliding",20/10/2021,0161851,100.00,Revenue,CC Door Systems Ltd,81624,,
Chorley Borough Council,http://statistics.data.gov.uk/id/local-authority/30UE,Central Support Services,1009,Commercial & Property,Planned Maintenance,20006,Repairs Maintenance & Alts,5005,"Automatic Door Service, ADDRESS REDACTED, 1x Swing door pair",20/10/2021,0161851,100.00,Revenue,CC Door Systems Ltd,81624,,
Chorley Borough Council,http://statistics.data.gov.uk/id/local-authority/30UE,Central Support Services,1009,Commercial & Property,Planned Maintenance,20006,Repairs Maintenance & Alts,5005,"Automatic Door Service, ADDRESS REDACTED, 1x Swing door pair",20/10/2021,0161851,100.00,Revenue,CC Door Systems Ltd,81624,,
Chorley Borough Council,http://statistics.data.gov.uk/id/local-authority/30UE,Central Support Services,1009,Commercial & Property,Planned Maintenance,20006,Repairs Maintenance & Alts,5005,"Automatic Door Service, ADDRESS REDACTED, 1x Single swing door",20/10/2021,0161851,100.00,Revenue,CC Door Systems Ltd,81624,,
Chorley Borough Council,http://statistics.data.gov.uk/id/local-authority/30UE,Central Support Services,1009,Commercial & Property,Planned Maintenance,20006,Repairs Maintenance & Alts,5005,"Automatic Door Service, ADDRESS REDACTED, 1x Single swing door",20/10/2021,0161851,100.00,Revenue,CC Door Systems Ltd,81624,,
Chorley Borough Council,http://statistics.data.gov.uk/id/local-authority/30UE,Central Support Services,1009,Commercial & Property,Planned Maintenance,20006,Repairs Maintenance & Alts,5005,"Automatic Door Service, Clayton Green Leisure Centre, 2x Bi part sliding doors",20/10/2021,0161851,130.00,Revenue,CC Door Systems Ltd,81624,,
Chorley Borough Council,http://statistics.data.gov.uk/id/local-authority/30UE,Central Support Services,1009,Commercial & Property,Planned Maintenance,20006,Repairs Maintenance & Alts,5005,"Automatic Door Service, All Seasons Leisure Centre, 2x Bi folding doors",20/10/2021,0161851,140.00,Revenue,CC Door Systems Ltd,81624,,
Chorley Borough Council,http://statistics.data.gov.uk/id/local-authority/30UE,Corporate Management,1008,Policy & Governance,Other Contributions,40145,Grants and Subscriptions,5031,Community transports services in Chorley throughout the pandemic. Trips for essential shopping and medical appointments.,20/10/2021,0161894,"10,000.00",Revenue,Central Lancs Dial-A-Ride Ltd,16617,,
Chorley Borough Council,http://statistics.data.gov.uk/id/local-authority/30UE,Regulatory Services,1048,Customer & Digital,Taxi Testing & Vehicle Safety Report,40234,Services,5027,mot,27/10/2021,0161946,932.45,Revenue,Chorley Autocare Ltd,17110,,
Chorley Borough Council,http://statistics.data.gov.uk/id/local-authority/30UE,Regulatory Services,1048,Customer & Digital,Taxi Testing & Vehicle Safety Report,40234,Services,5027,taxi,27/10/2021,0161946,145.35,Revenue,Chorley Autocare Ltd,17110,,
Chorley Borough Council,http://statistics.data.gov.uk/id/local-authority/30UE,Other Short Term Creditors,,Policy & Governance,General Balances,00100,Balance Sheet,Balance,trans income 19/8 to 15/9/21,27/10/2021,0160922,"74,498.53",Revenue,Chorley Leisure Ltd,83376,,
Chorley Borough Council,http://statistics.data.gov.uk/id/local-authority/30UE,Other Short Term Creditors,,Policy & Governance,General Balances,00100,Balance Sheet,Balance,TFR inc 17/9 - 07/10/21,27/10/2021,0162058,"37,273.83",Revenue,Chorley Leisure Ltd,83376,,
Chorley Borough Council,http://statistics.data.gov.uk/id/local-authority/30UE,Central Support Services,1009,Policy & Governance,Exhibitions & Special Events,40158,Miscellaneous Expenses,5034,First Aid Cover at Corporate Events 2021,20/10/2021,0161589,400.00,Revenue,Chorley`s Angels Community Group,63882,,
Chorley Borough Council,http://statistics.data.gov.uk/id/local-authority/30UE,Central Support Services,1009,Policy & Governance,IT Software - Annual Licences,40101,Communication and Computing,5028,"2021 - 2022 Licence, Support and Maintenance",06/10/2021,0161175,487.45,Revenue,Civica UK Limited,17463,,
Chorley Borough Council,http://statistics.data.gov.uk/id/local-authority/30UE,Central Support Services,1009,Commercial & Property,General Repairs - Reactive,20004,Repairs Maintenance & Alts,5005,Town Hall - Blanket order for reactive repairs,13/10/2021,0160797,342.76,Revenue,Classic Lifts Limited,20897,,
Chorley Borough Council,http://statistics.data.gov.uk/id/local-authority/30UE,Capital,Capital,Commercial & Property,Consultants Fees,03025,Capital Expenditure,Capital,Whittle - Design Stage SBEM calculations,13/10/2021,0161506,495.00,Capital,Complete Sustainability Solutions,80558,,
Chorley Borough Council,http://statistics.data.gov.uk/id/local-authority/30UE,Central Support Services,1009,Commercial & Property,Professional Fees,40063,Services,5027,BREEAm Design Stage Assessment & Submission Alker Lane,13/10/2021,0161507,800.00,Revenue,Complete Sustainability Solutions,80558,,
Chorley Borough Council,http://statistics.data.gov.uk/id/local-authority/30UE,Central Support Services,1009,Customer & Digital,Items For Resale,40027,"Equipment, Furniture & Materia",5023,"100x 360L brown wheeled bins, 0905 body and lid, logo to front in white, standard axles, 200mm black wheels, stacked in 10's.",06/10/2021,0160208,"3,970.00",Revenue,Contenur Uk Ltd,82451,,
Chorley Borough Council,http://statistics.data.gov.uk/id/local-authority/30UE,Capital,Capital,Customer & Digital,Main Contractor,03007,Capital Expenditure,Capital,"2 x Moss Lane Wifi Antenna poles with �dog leg� away from the camera head by 150mm, provides clearance away from IR lamps",27/10/2021,0157150,"1,171.79",Capital,Core Integrated Solutions,77043,,
Chorley Borough Council,http://statistics.data.gov.uk/id/local-authority/30UE,Central Support Services,1009,Commercial & Property,Planned Maintenance,20006,Repairs Maintenance & Alts,5005,"Town Hall, Servicing of fans in offices",27/10/2021,0162007,"1,790.06",Revenue,Corlett Electrical Eng Co Ltd,16271,,
Chorley Borough Council,http://statistics.data.gov.uk/id/local-authority/30UE,Business Support,1095,Commercial & Property,Gas,20014,Energy Costs,5006,aug-sept21,13/10/2021,0161426,"1,130.47",Revenue,Corona Energy Retail 2 Ltd,67249,,
Chorley Borough Council,http://statistics.data.gov.uk/id/local-authority/30UE,Recreation & Sport,1037,Commercial & Property,Gas,20014,Energy Costs,5006,aug-sept21,13/10/2021,0161428,438.18,Revenue,Corona Energy Retail 2 Ltd,67249,,
Chorley Borough Council,http://statistics.data.gov.uk/id/local-authority/30UE,Recreation & Sport,1037,Commercial & Property,Gas,20014,Energy Costs,5006,aug-sept21,13/10/2021,0161429,"1,175.69",Revenue,Corona Energy Retail 2 Ltd,67249,,
Chorley Borough Council,http://statistics.data.gov.uk/id/local-authority/30UE,Recreation & Sport,1037,Commercial & Property,Gas,20014,Energy Costs,5006,aug-sept21,13/10/2021,0161430,"4,363.51",Revenue,Corona Energy Retail 2 Ltd,67249,,
Chorley Borough Council,http://statistics.data.gov.uk/id/local-authority/30UE,Recreation & Sport,1037,Commercial & Property,Gas,20014,Energy Costs,5006,may-jun21,13/10/2021,0161431,"1,136.37",Revenue,Corona Energy Retail 2 Ltd,67249,,
Chorley Borough Council,http://statistics.data.gov.uk/id/local-authority/30UE,Recreation & Sport,1037,Commercial & Property,Gas,20014,Energy Costs,5006,jun-jul21,13/10/2021,0161432,"1,227.08",Revenue,Corona Energy Retail 2 Ltd,67249,,
Chorley Borough Council,http://statistics.data.gov.uk/id/local-authority/30UE,Open Spaces,1038,Commercial & Property,Gas,20014,Energy Costs,5006,aug-sept21,13/10/2021,0161433,267.82,Revenue,Corona Energy Retail 2 Ltd,67249,,
Chorley Borough Council,http://statistics.data.gov.uk/id/local-authority/30UE,Recreation & Sport,1037,Commercial & Property,Gas,20014,Energy Costs,5006,jul-aug21,13/10/2021,0161434,"1,158.34",Revenue,Corona Energy Retail 2 Ltd,67249,,
Chorley Borough Council,http://statistics.data.gov.uk/id/local-authority/30UE,Homelessness,1075,Commercial & Property,Gas,20014,Energy Costs,5006,aug-sept21,13/10/2021,0161445,397.04,Revenue,Corona Energy Retail 2 Ltd,67249,,
Chorley Borough Council,http://statistics.data.gov.uk/id/local-authority/30UE,Recreation & Sport,1037,Commercial & Property,Gas,20014,Energy Costs,5006,aug-sept21,13/10/2021,0161446,348.57,Revenue,Corona Energy Retail 2 Ltd,67249,,
Chorley Borough Council,http://statistics.data.gov.uk/id/local-authority/30UE,Central Support Services,1009,Commercial & Property,Gas,20014,Energy Costs,5006,aug-sept21,13/10/2021,0161448,501.97,Revenue,Corona Energy Retail 2 Ltd,67249,,
Chorley Borough Council,http://statistics.data.gov.uk/id/local-authority/30UE,Central Support Services,1009,Communities,Miscellaneous Expenses,40200,Miscellaneous Expenses,5034,West Street Car Park GRT - support with eviction from site,06/10/2021,0161227,750.00,Revenue,COURT ENFORCEMENT SPECIALISTS LTD,77924,,
Chorley Borough Council,http://statistics.data.gov.uk/id/local-authority/30UE,Central Support Services,1009,Customer & Digital,Items For Resale,40027,"Equipment, Furniture & Materia",5023,240 Litre Neo plastic wheeled bin (GREY) Quantity 300 with Chorley logo & RFID chip included,27/10/2021,0162076,"5,400.00",Revenue,Craemer UK Ltd,64712,,
Chorley Borough Council,http://statistics.data.gov.uk/id/local-authority/30UE,Capital,Capital,Customer & Digital,Main Contractor,03007,Capital Expenditure,Capital,"3x 1000-litres HVO Road IBC, 1x 240V pump with bottom suction kit, Delivery charge",06/10/2021,0160416,"1,405.00",Capital,Crown Oil Ltd,16739,,
Chorley Borough Council,http://statistics.data.gov.uk/id/local-authority/30UE,Other Short Term Debtors,,Policy & Governance,Other Debtors,00098,Balance Sheet,Balance,Cycle scheme for NAME REDACTED,06/10/2021,0160036,391.67,Revenue,Cyclescheme Ltd,78414,,
Chorley Borough Council,http://statistics.data.gov.uk/id/local-authority/30UE,Other Short Term Debtors,,Policy & Governance,Other Debtors,00098,Balance Sheet,Balance,helmets,06/10/2021,0160036,30.00,Revenue,Cyclescheme Ltd,78414,,
Chorley Borough Council,http://statistics.data.gov.uk/id/local-authority/30UE,Corporate Management,1008,Policy & Governance,Miscellaneous Expenses,40200,Miscellaneous Expenses,5034,Hire of 8 portable hand wash stations from 26th July to 22nd August 2021. Invoice 3191,20/10/2021,0161873,"1,440.00",Revenue,Cyril Unsworth Ltd,78887,,
Chorley Borough Council,http://statistics.data.gov.uk/id/local-authority/30UE,Corporate Management,1008,Policy & Governance,Miscellaneous Expenses,40200,Miscellaneous Expenses,5034,Invoice 3239. Hire of 8 portable hand wash units from 23rd Aug to 19th Sept 2021.,27/10/2021,0162016,"1,440.00",Revenue,Cyril Unsworth Ltd,78887,,
Chorley Borough Council,http://statistics.data.gov.uk/id/local-authority/30UE,Capital,Capital,Communities,Grants,03002,Capital Expenditure,Capital,,06/10/2021,0161341,"3,624.00",Capital,NAME REDACTED,78482,,
Chorley Borough Council,http://statistics.data.gov.uk/id/local-authority/30UE,Capital,Capital,Communities,Grants,03002,Capital Expenditure,Capital,ADDRESS REDACTED,13/10/2021,0161512,500.00,Capital,NAME REDACTED,78482,,
Chorley Borough Council,http://statistics.data.gov.uk/id/local-authority/30UE,Central Support Services,1009,Customer & Digital,Computer Equipment-Purchase,40098,Communication and Computing,5028,3 x iPhone se,20/10/2021,0161479,"1,017.00",Revenue,DAC Technology Ltd,76398,,
Chorley Borough Council,http://statistics.data.gov.uk/id/local-authority/30UE,Business Support,1095,Commercial & Property,Fixtures & Fittings - Repair/Mtnce,20028,Fixtures and Fittings,5010,24/7 Maintenance cover for TC Radio System mast and associated equipment. 950+VAT,13/10/2021,0161333,950.00,Revenue,DCS 2 Way Radio Ltd,77666,,
Chorley Borough Council,http://statistics.data.gov.uk/id/local-authority/30UE,Recreation & Sport,1037,Policy & Governance,Professional Fees,40063,Services,5027,3 x sign on new MIDs - chip and pins (Chorley Leisure) 1 x sign on new MID - ecommerce (Chorley Leisure),06/10/2021,0161349,796.00,Revenue,Debit Finance Collections Plc T/A Legend Software,80920,,
Chorley Borough Council,http://statistics.data.gov.uk/id/local-authority/30UE,Control Accounts,Control,Policy & Governance,General Balances,00100,Balance Sheet,Balance,REDACTED,27/10/2021,0162129,252.08,Revenue,Department for Work and Pensions (NAME REDACTED),83955,,
Chorley Borough Council,http://statistics.data.gov.uk/id/local-authority/30UE,Recreation & Sport,1037,Policy & Governance,Tools & Equipment - Purchase,40003,"Equipment, Furniture & Materia",5023,"6 X IVY LEAF ROUND TABLECOTHS @ 54.61 COLOUR: WHITE, DIMENSIONS: 108'' (275CM) FINISH: OVERLOCK",06/10/2021,0161319,327.66,Revenue,Direct Linen Textiles International Ltd,65206,,
Chorley Borough Council,http://statistics.data.gov.uk/id/local-authority/30UE,Recreation & Sport,1037,Policy & Governance,Tools & Equipment - Purchase,40003,"Equipment, Furniture & Materia",5023,PRIORITY DESPATCH (2 WORKING DAYS). DELIVERY OF TABLE RUNNERS REQUIRED BY WED 8TH SEPTEMBER,06/10/2021,0161319,20.00,Revenue,Direct Linen Textiles International Ltd,65206,,
Chorley Borough Council,http://statistics.data.gov.uk/id/local-authority/30UE,Central Support Services,1009,Customer & Digital,Mobile Voice and Data,40086,Communication and Computing,5028,3rd Sept 2021,20/10/2021,0161467,"3,239.75",Revenue,EE - Orange,16486,,
Chorley Borough Council,http://statistics.data.gov.uk/id/local-authority/30UE,Recreation & Sport,1037,Commercial & Property,General Repairs - Reactive,20004,Repairs Maintenance & Alts,5005,"CGLC inv 100724, Supply and install new ribbed entrance matting TF12915",06/10/2021,0161191,375.00,Revenue,EFT Construction,78195,,
Chorley Borough Council,http://statistics.data.gov.uk/id/local-authority/30UE,Open Spaces,1038,Communities,Grounds Maintenance Contractor,20043,Grounds Maintenance Costs,5013,"Various trees, shrubs, perennials and annuals, display for the Chorley Flower Show Climate Change Stand, Wildlife friendly",06/10/2021,0161265,535.00,Revenue,Everglades Nurseries Ltd,20202,,
Chorley Borough Council,http://statistics.data.gov.uk/id/local-authority/30UE,Parking Services,1066,Customer & Digital,Fixtures & Fittings - Repair/Mtnce,20028,Fixtures and Fittings,5010,"3x Phormiums (New Zealand Flax), 12x Lavender Angustifolia, 4x Hebe (Heartbreaker), 12x Gaillardia grandiflora, 12x Heuchera",06/10/2021,0161287,269.36,Revenue,Everglades Nurseries Ltd,20202,,
Chorley Borough Council,http://statistics.data.gov.uk/id/local-authority/30UE,Business Support,1095,Customer & Digital,Fixtures & Fittings - Repair/Mtnce,20028,Fixtures and Fittings,5010,Supply various plants for the T/C,06/10/2021,0161288,333.30,Revenue,Everglades Nurseries Ltd,20202,,
Chorley Borough Council,http://statistics.data.gov.uk/id/local-authority/30UE,Service Management & Support,1009,Customer & Digital,Supplies-Grounds Maintenance,40025,"Equipment, Furniture & Materia",5023,As per pro forma 153617,20/10/2021,0161221,666.92,Revenue,F R Sharrock Ltd,18091,,
Chorley Borough Council,http://statistics.data.gov.uk/id/local-authority/30UE,Service Management & Support,1009,Customer & Digital,Vehicles and Plant Maintenance,30045,Direct Transport Costs,5016,"PO16 HNL Ransome Highway 3, STRIP DOWN AND REPLACE BELL HOUSING, REPLACED LEAKING BRAKE SWITCH",20/10/2021,0161351,"1,074.98",Revenue,F R Sharrock Ltd,18091,,
Chorley Borough Council,http://statistics.data.gov.uk/id/local-authority/30UE,Recreation & Sport,1037,Commercial & Property,Grants to Voluntary Organisations,40124,Grants and Subscriptions,5031,"Invoice no: 1140, Annual maintenance grant 2020/21 8000",06/10/2021,0161176,"8,000.00",Revenue,Fairview Youth & Community Association,20589,,
Chorley Borough Council,http://statistics.data.gov.uk/id/local-authority/30UE,Central Support Services,1009,Customer & Digital,Unitary Payment(S),50009,Private Contractors,5042,Provision of waste and recycling collection services 2021-2022,20/10/2021,0161352,"186,717.06",Revenue,FCC Environment Services (UK) Limited,77903,,
Chorley Borough Council,http://statistics.data.gov.uk/id/local-authority/30UE,Service Management & Support,1009,Customer & Digital,Freight Transport Assoc Fees,40150,Grants and Subscriptions,5031,As per invoice number 300307849,20/10/2021,0161365,600.00,Revenue,Freight Transport Assoc Ltd,16333,,
Chorley Borough Council,http://statistics.data.gov.uk/id/local-authority/30UE,Open Spaces,1038,Customer & Digital,Playground Equipment,40008,"Equipment, Furniture & Materia",5023,Supply a damper unit for a Rota Bounce (Playdale),06/10/2021,0161174,287.53,Revenue,GB Sport & Leisure,21305,,
Chorley Borough Council,http://statistics.data.gov.uk/id/local-authority/30UE,Service Management & Support,1009,Customer & Digital,Hire Of Vehicles and Plant,30028,Contrct Hire & Operating Lease,5018,3 Year Contract Hire Chassis mounted sweeper as per ITT. Including servicing and Maintenance. to be paid monthly in arrears,20/10/2021,0161189,"2,772.31",Revenue,Go Plant Fleet Services Ltd,80857,,
Chorley Borough Council,http://statistics.data.gov.uk/id/local-authority/30UE,Service Management & Support,1009,Customer & Digital,Hire Of Vehicles and Plant,30028,Contrct Hire & Operating Lease,5018,3 Year Contract hire 1x Johnston CN101 as per ITT including servicing and Maintenance,20/10/2021,0161198,"1,762.23",Revenue,Go Plant Fleet Services Ltd,80857,,
Chorley Borough Council,http://statistics.data.gov.uk/id/local-authority/30UE,Capital,Capital,Commercial & Property,Other Capital Related Fees,03024,Capital Expenditure,Capital,Covered Market Seating area fee,13/10/2021,0161363,"1,667.00",Capital,Gosling Consulting Limited,78380,,
Chorley Borough Council,http://statistics.data.gov.uk/id/local-authority/30UE,Capital,Capital,Commercial & Property,Other Capital Related Fees,03024,Capital Expenditure,Capital,"F&B area in Chorley Covered Market, Cladding to seating area, Infill partition to rear of unit 31, Timber supports for shutters",13/10/2021,0161364,"2,631.00",Capital,Gosling Consulting Limited,78380,,
Chorley Borough Council,http://statistics.data.gov.uk/id/local-authority/30UE,Central Support Services,1009,Commercial & Property,Professional Fees,40063,Services,5027,NAME REDACTED - Sept 21 Timesheet,27/10/2021,0162034,893.75,Revenue,Gosling Consulting Limited,78380,,
Chorley Borough Council,http://statistics.data.gov.uk/id/local-authority/30UE,Central Support Services,1009,Commercial & Property,Professional Fees,40063,Services,5027,NAME REDACTED - Sept 21 Timecard,27/10/2021,0162035,"1,056.25",Revenue,Gosling Consulting Limited,78380,,
Chorley Borough Council,http://statistics.data.gov.uk/id/local-authority/30UE,Central Support Services,1009,Customer & Digital,Computer - Support Services,40111,Communication and Computing,5028,"Goss Content Live Environment (Lite) x2, Test Environment x2, Goss Development x2, Goss Forms (Lite) x2, Content Bundle",20/10/2021,0156124,"57,136.00",Revenue,GOSS Interactive Limited,20316,,
Chorley Borough Council,http://statistics.data.gov.uk/id/local-authority/30UE,Central Support Services,1009,Policy & Governance,External Audit,40064,Services,5027,Housing Benefit Subsidy Certification Audit work 2020-21,06/10/2021,0161182,"16,000.00",Revenue,Grant Thornton UK LLP,57322,,
Chorley Borough Council,http://statistics.data.gov.uk/id/local-authority/30UE,Corporate Management,1008,Commercial & Property,Publicity - Advertising,40157,Miscellaneous Expenses,5034,Social media for Market Walk Shopping Centre Chorley. July 2021 - March 2022 @500 Per month Total 9 months 4500,06/10/2021,0161256,500.00,Revenue,Gravity,77837,,
Chorley Borough Council,http://statistics.data.gov.uk/id/local-authority/30UE,Central Support Services,1009,Policy & Governance,Publicity - Advertising,40157,Miscellaneous Expenses,5034,12 month advertising subscription to Friends of Buckshaw magazine. 1 advert per month.,06/10/2021,0161201,"2,220.00",Revenue,Green Man Marketing,73050,,
Chorley Borough Council,http://statistics.data.gov.uk/id/local-authority/30UE,Tourism,1039,Policy & Governance,Publicity - Advertising,40157,Miscellaneous Expenses,5034,Upgrade to back page position in the Leyland Community Magazine - July edition - to promote Chorley Flower Show.,06/10/2021,0161250,285.00,Revenue,Green Man Marketing,73050,,
Chorley Borough Council,http://statistics.data.gov.uk/id/local-authority/30UE,Tourism,1039,Policy & Governance,Miscellaneous Expenses,40200,Miscellaneous Expenses,5034,Greenwood crafts and pole lathe turning demonstrations - 3 days.,06/10/2021,0161225,780.00,Revenue,Greenwood Twiggs,76970,,
Chorley Borough Council,http://statistics.data.gov.uk/id/local-authority/30UE,Corporate Management,1008,Policy & Governance,Miscellaneous Expenses,40200,Miscellaneous Expenses,5034,Hire of 8 mobile hand wash sinks from 1st-30th September 2021. Contract number: 0024813.,06/10/2021,0161229,"1,440.00",Revenue,Hallmark Catering,78575,,
Chorley Borough Council,http://statistics.data.gov.uk/id/local-authority/30UE,Service Management & Support,1009,Customer & Digital,Supplies-Grounds Maintenance,40025,"Equipment, Furniture & Materia",5023,"As per Quote No Q1087, MC-21904.05 FLAIL F14 30 EACH, XZ-10 DPD CARRIAGE-OVERSIZE",20/10/2021,0161574,325.00,Revenue,Halse South West Ltd,76890,,
Chorley Borough Council,http://statistics.data.gov.uk/id/local-authority/30UE,Tourism,1039,Policy & Governance,Supplies-Grounds Maintenance,40025,"Equipment, Furniture & Materia",5023,"Construction and planting of 2 children`s competition gardens at Chorley Flower Show 2021, Astley Park, Chorley 685.00",20/10/2021,0161158,685.00,Revenue,Homescapes 1990 Ltd,83511,,
Chorley Borough Council,http://statistics.data.gov.uk/id/local-authority/30UE,Central Support Services,1009,Policy & Governance,Miscellaneous Expenses,40200,Miscellaneous Expenses,5034,Construction and installation of raised planting/flower beds for the Mayflower/Myles Standish Garden by Homescapes Ltd,20/10/2021,0161357,"6,500.00",Revenue,Homescapes 1990 Ltd,83511,,
Chorley Borough Council,http://statistics.data.gov.uk/id/local-authority/30UE,Recreation & Sport,1037,Commercial & Property,Electricity,20013,Energy Costs,5006,electricity 01-31/12/2020,06/10/2021,0160539,"11,571.71",Revenue,Hudson Energy Supply {UK} / Shell Energy,81169,,
Chorley Borough Council,http://statistics.data.gov.uk/id/local-authority/30UE,Central Support Services,1009,Customer & Digital,Telephones - Other,40085,Communication and Computing,5028,Hybrit SIP charges Sept 21,06/10/2021,0161235,585.00,Revenue,Hybrit LLP,77925,,
Chorley Borough Council,http://statistics.data.gov.uk/id/local-authority/30UE,Corporate Management,1008,Policy & Governance,Other Fees,40212,Miscellaneous Expenses,5034,Subsidy for the provision of a meals on wheels service in Chorley up to 12 September 2021,06/10/2021,0161114,"2,372.38",Revenue,I Care GB Ltd,77247,,
Chorley Borough Council,http://statistics.data.gov.uk/id/local-authority/30UE,Service Management & Support,1009,Communities,Supplies-Grounds Maintenance,40025,"Equipment, Furniture & Materia",5023,"Replacement black metal self close gate, Rangletts Rec Ground. Gate to match original spec, Refer to NAME REDACTED.",27/10/2021,0162037,977.90,Revenue,IAE,76766,,
Chorley Borough Council,http://statistics.data.gov.uk/id/local-authority/30UE,Business Support,1095,Commercial & Property,Computer Equipment-Purchase,40098,Communication and Computing,5028,Per your quote number #QTE-041676. Inventory Standard Maintenance 12 months,20/10/2021,0161884,300.00,Revenue,IDN Supplies,78102,,
Chorley Borough Council,http://statistics.data.gov.uk/id/local-authority/30UE,Elections,1012,Policy & Governance,Computer - Support Services,40111,Communication and Computing,5028,data re-load for annual canvass 2021,13/10/2021,0161257,285.00,Revenue,IDOX Software Limited,17542,,
Chorley Borough Council,http://statistics.data.gov.uk/id/local-authority/30UE,Elections,1012,Policy & Governance,Computer - Support Services,40111,Communication and Computing,5028,"Annual canvass 2021 - IVR Platinum Service, IVR set up, Data re-load, Print & Send, set up fee",13/10/2021,0161258,"4,034.90",Revenue,IDOX Software Limited,17542,,
Chorley Borough Council,http://statistics.data.gov.uk/id/local-authority/30UE,Central Support Services,1009,Policy & Governance,Refuse Collection,20037,Cleaning and Domestic Supplies,5012,"UNION STREET OFFICES, PR7 1AL, 1 Elite Modular Airfresh White/Blue, 1 Elite Modular Airfresh White/Blue",13/10/2021,0161580,578.06,Revenue,Initial,78488,,
Chorley Borough Council,http://statistics.data.gov.uk/id/local-authority/30UE,Control Accounts,Control,System,Manual Control Account,00001,Balance Sheet,Balance,,20/10/2021,0160488,434.71,Revenue,Inland Revenue,17445,,
Chorley Borough Council,http://statistics.data.gov.uk/id/local-authority/30UE,Tourism,1039,Policy & Governance,Supplies-Grounds Maintenance,40025,"Equipment, Furniture & Materia",5023,"Order of Glass Trophies for Chorley Flower Show, 1 x Large sandblasted Glass Award, 9 x Category Awards Including Engraving",06/10/2021,0161224,360.76,Revenue,John Harrison Sports,17470,,
Chorley Borough Council,http://statistics.data.gov.uk/id/local-authority/30UE,Central Support Services,1009,Commercial & Property,Main Contractor,03007,Capital Expenditure,Capital,Alker Lane Design & Build Contract,20/10/2021,0161602,"993,609.67",Revenue,John Turner Construction Group Limited,82376,,
Chorley Borough Council,http://statistics.data.gov.uk/id/local-authority/30UE,Capital,Capital,Communities,Grants,03002,Capital Expenditure,Capital,ADDRESS REDACTED,06/10/2021,0161335,"5,190.00",Capital,K Berry Ltd,16421,,
Chorley Borough Council,http://statistics.data.gov.uk/id/local-authority/30UE,Capital,Capital,Communities,Grants,03002,Capital Expenditure,Capital,ADDRESS REDACTED,06/10/2021,0161339,"4,952.50",Capital,K Berry Ltd,16421,,
Chorley Borough Council,http://statistics.data.gov.uk/id/local-authority/30UE,Capital,Capital,Communities,Grants,03002,Capital Expenditure,Capital,ADDRESS REDACTED,06/10/2021,0161340,"5,100.00",Capital,K Berry Ltd,16421,,
Chorley Borough Council,http://statistics.data.gov.uk/id/local-authority/30UE,Capital,Capital,Communities,Grants,03002,Capital Expenditure,Capital,ADDRESS REDACTED,13/10/2021,0161399,"2,446.00",Capital,K Berry Ltd,16421,,
Chorley Borough Council,http://statistics.data.gov.uk/id/local-authority/30UE,Capital,Capital,Communities,Grants,03002,Capital Expenditure,Capital,ADDRESS REDACTED,13/10/2021,0161406,"3,164.00",Capital,K Berry Ltd,16421,,
Chorley Borough Council,http://statistics.data.gov.uk/id/local-authority/30UE,Central Support Services,1009,Customer & Digital,Professional Fees,40063,Services,5027,National Enforcement Academy WAMITAB accredited training course for NAME REDACTED 8 half day sessions via MS Teams,06/10/2021,0161168,"2,158.20",Revenue,Keep Britain Tidy,22196,,
Chorley Borough Council,http://statistics.data.gov.uk/id/local-authority/30UE,Central Support Services,1009,Customer & Digital,Computer Equipment-Purchase,40098,Communication and Computing,5028,"Magicard Pronto100 ID Card Printer (Single-Sided), MD100YMCKO Colour Ribbon, E9100 Cleaning Kit (10 cards, 1 pen)",06/10/2021,0159367,674.47,Revenue,Kingsfield Computer Products LTD,77551,,
Chorley Borough Council,http://statistics.data.gov.uk/id/local-authority/30UE,Control Accounts,Control,Policy & Governance,General Balances,00100,Balance Sheet,Balance,Monthly Deductions from Expenses,27/10/2021,0162127,"1,225.38",Revenue,Labour Councillors Association,17577,,
Chorley Borough Council,http://statistics.data.gov.uk/id/local-authority/30UE,Central Support Services,1009,Policy & Governance,Furniture - Purchase,40012,"Equipment, Furniture & Materia",5023,"As per quotation - Estimate hc1046, Removal of old furniture from Finance office for recycling/disposal",06/10/2021,0161213,650.00,Revenue,Lancashire Clearance Services Ltd,79462,,
Chorley Borough Council,http://statistics.data.gov.uk/id/local-authority/30UE,Capital,Capital,Communities,Grants,03002,Capital Expenditure,Capital,ADDRESS REDACTED,27/10/2021,0161950,"11,867.00",Capital,Lancashire County Council,17758,,
Chorley Borough Council,http://statistics.data.gov.uk/id/local-authority/30UE,Capital,Capital,Communities,Other Legal Fees,03020,Capital Expenditure,Capital,"West Way, Chorley Street Lighting, Quotation from NAME REDACTED (Highways and Transport, Lancashire County Council)",27/10/2021,0162055,"10,845.00",Capital,Lancashire County Council,17758,,
Chorley Borough Council,http://statistics.data.gov.uk/id/local-authority/30UE,Capital,Capital,Commercial & Property,Other Expenses,03030,Capital Expenditure,Capital,S278 Agreement - Euxton Lane Chorley,20/10/2021,0161329,"1,375.00",Capital,Lancashire County Council Highways,18845,,
Chorley Borough Council,http://statistics.data.gov.uk/id/local-authority/30UE,Central Support Services,1009,Customer & Digital,Clinical Waste Collection,50007,Private Contractors,5042,Domestic clinical waste collection services June 2021 to March 2022,27/10/2021,0161980,"2,755.67",Revenue,Lancashire Environmental Services,82309,,
Chorley Borough Council,http://statistics.data.gov.uk/id/local-authority/30UE,Capital,Capital,Commercial & Property,Main Contractor,03007,Capital Expenditure,Capital,"ADDRESS REDACTED, engineer found that the flue was corroded and the gas valve has failed. Existing boiler is 25 years",20/10/2021,0160791,"3,163.83",Capital,Lancashire Gas Services Ltd,78192,,
Chorley Borough Council,http://statistics.data.gov.uk/id/local-authority/30UE,Central Support Services,1009,Commercial & Property,General Repairs - Reactive,20004,Repairs Maintenance & Alts,5005,Cotswold House  - reactive repair works,20/10/2021,0160795,857.30,Revenue,Lancashire Gas Services Ltd,78192,,
Chorley Borough Council,http://statistics.data.gov.uk/id/local-authority/30UE,Central Support Services,1009,Commercial & Property,Planned Maintenance,20006,Repairs Maintenance & Alts,5005,"inv019535, Primrose , service remedials - burner insulation damaged and ignitors and probes heat stressed",20/10/2021,0160963,"1,338.25",Revenue,Lancashire Gas Services Ltd,78192,,
Chorley Borough Council,http://statistics.data.gov.uk/id/local-authority/30UE,Central Support Services,1009,Commercial & Property,Planned Maintenance,20006,Repairs Maintenance & Alts,5005,"inv 019539, ADDRESS REDACTED, Service remedials - rotten pipework",20/10/2021,0160964,520.50,Revenue,Lancashire Gas Services Ltd,78192,,
Chorley Borough Council,http://statistics.data.gov.uk/id/local-authority/30UE,Unapportionable Central OHeads,1009,Policy & Governance,Pensions Increase Act Payments,18005,Indirect Employee Expenses,5002,CAT july 21,27/10/2021,0161061,"17,244.39",Revenue,Lancashire Pensions Services DD ONLY,16696,,
Chorley Borough Council,http://statistics.data.gov.uk/id/local-authority/30UE,Unapportionable Central OHeads,1009,Policy & Governance,Pensions Increase Act Payments,18005,Indirect Employee Expenses,5002,CAY aug 21,27/10/2021,0161599,"17,149.46",Revenue,Lancashire Pensions Services DD ONLY,16696,,
Chorley Borough Council,http://statistics.data.gov.uk/id/local-authority/30UE,Unapportionable Central OHeads,1009,Policy & Governance,Pensions Increase Act Payments,18005,Indirect Employee Expenses,5002,CAY Sept 21,27/10/2021,0162059,"17,149.46",Revenue,Lancashire Pensions Services DD ONLY,16696,,
Chorley Borough Council,http://statistics.data.gov.uk/id/local-authority/30UE,Other Short Term Creditors,,Policy & Governance,General Balances,00100,Balance Sheet,Balance,EEs,27/10/2021,0162131,"45,176.20",Revenue,Lancashire Pensions Services DD ONLY,16696,,
Chorley Borough Council,http://statistics.data.gov.uk/id/local-authority/30UE,Precepts and Collection Fund,Precepts,Policy & Governance,LCFA Precept,02011,Precepts & Collection Fund,Precept,LCFA council tax prescept,27/10/2021,0161327,"271,012.00",Revenue,Lancs Combined Fire Authority,17768,,
Chorley Borough Council,http://statistics.data.gov.uk/id/local-authority/30UE,Collection Fund Revenue Accoun,,Policy & Governance,NNDR Fire Share,02037,Precepts & Collection Fund,Precept,LCFA bus rates precepts,27/10/2021,0161327,"14,851.00",Revenue,Lancs Combined Fire Authority,17768,,
Chorley Borough Council,http://statistics.data.gov.uk/id/local-authority/30UE,Precepts and Collection Fund,Precepts,Policy & Governance,LCFA Precept,02011,Precepts & Collection Fund,Precept,LCFA cTax precepts,27/10/2021,0161328,"271,012.00",Revenue,Lancs Combined Fire Authority,17768,,
Chorley Borough Council,http://statistics.data.gov.uk/id/local-authority/30UE,Collection Fund Revenue Accoun,,Policy & Governance,NNDR Fire Share,02037,Precepts & Collection Fund,Precept,LCFA Bus rates precepts,27/10/2021,0161328,"14,851.00",Revenue,Lancs Combined Fire Authority,17768,,
Chorley Borough Council,http://statistics.data.gov.uk/id/local-authority/30UE,Precepts and Collection Fund,Precepts,Policy & Governance,LCFA Precept,02011,Precepts & Collection Fund,Precept,LCFA Council Tax Precept,27/10/2021,0162065,"271,012.00",Revenue,Lancs Combined Fire Authority,17768,,
Chorley Borough Council,http://statistics.data.gov.uk/id/local-authority/30UE,Collection Fund Revenue Accoun,,Policy & Governance,NNDR Fire Share,02037,Precepts & Collection Fund,Precept,LCFA Business Rates Precepts,27/10/2021,0162065,"14,851.00",Revenue,Lancs Combined Fire Authority,17768,,
Chorley Borough Council,http://statistics.data.gov.uk/id/local-authority/30UE,Development Control,1091,Customer & Digital,Legal Fees,40171,Miscellaneous Expenses,5034,WAIVER RE CONTRACT PROCEDURE RULES - TOWN LANE/TINCKLERS LANE,20/10/2021,0161245,"15,000.00",Revenue,Land Use Consultants (LUC) Ltd,81849,,
Chorley Borough Council,http://statistics.data.gov.uk/id/local-authority/30UE,Development Control,1091,Customer & Digital,Legal Fees,40171,Miscellaneous Expenses,5034,WAIVER RE CONTRACT PROCEDURE RULES - TOWN LANE/TINCKLERS LANE,20/10/2021,0161608,"13,138.95",Revenue,Land Use Consultants (LUC) Ltd,81849,,
Chorley Borough Council,http://statistics.data.gov.uk/id/local-authority/30UE,Capital,Capital,Communities,Main Contractor,03007,Capital Expenditure,Capital,"Design and Construction, New 106 x 70 Artificial Grass Pitch, New Fencing, Hardstanding, Floodlighting and Track Works",27/10/2021,0159780,"90,442.78",Capital,Lano Sports,80704,,
Chorley Borough Council,http://statistics.data.gov.uk/id/local-authority/30UE,Central Support Services,1009,Policy & Governance,Publications,40054,"Printing, Stationery & General",5026,Subscription to Stones Justice Manual for 2020,20/10/2021,0161459,440.83,Revenue,Lexis Nexis UK,16688,,
Chorley Borough Council,http://statistics.data.gov.uk/id/local-authority/30UE,Central Support Services,1009,Policy & Governance,Publications,40054,"Printing, Stationery & General",5026,,20/10/2021,0161459,415.16,Revenue,Lexis Nexis UK,16688,,
Chorley Borough Council,http://statistics.data.gov.uk/id/local-authority/30UE,Central Support Services,1009,Policy & Governance,Publications,40054,"Printing, Stationery & General",5026,,20/10/2021,0161459,7.00,Revenue,Lexis Nexis UK,16688,,
Chorley Borough Council,http://statistics.data.gov.uk/id/local-authority/30UE,Central Support Services,1009,Customer & Digital,Professional Fees,14011,Direct Employee Expenses,5001,Empty Homes Review 2021,27/10/2021,0161004,"9,068.15",Revenue,Liberata (Capacity Grid),67989,,
Chorley Borough Council,http://statistics.data.gov.uk/id/local-authority/30UE,Central Support Services,1009,Commercial & Property,Planned Maintenance,20006,Repairs Maintenance & Alts,5005,Lightning test and inspection at Primrose Gardens,27/10/2021,0162009,265.00,Revenue,Lightning Consultants (UK) Ltd,17446,,
Chorley Borough Council,http://statistics.data.gov.uk/id/local-authority/30UE,Central Support Services,1009,Commercial & Property,Planned Maintenance,20006,Repairs Maintenance & Alts,5005,Lightning test and inspection Brinscall Baths,27/10/2021,0162009,240.00,Revenue,Lightning Consultants (UK) Ltd,17446,,
Chorley Borough Council,http://statistics.data.gov.uk/id/local-authority/30UE,Central Support Services,1009,Commercial & Property,Planned Maintenance,20006,Repairs Maintenance & Alts,5005,Lightning test and inspection Clayton Green,27/10/2021,0162009,240.00,Revenue,Lightning Consultants (UK) Ltd,17446,,
Chorley Borough Council,http://statistics.data.gov.uk/id/local-authority/30UE,Central Support Services,1009,Commercial & Property,Planned Maintenance,20006,Repairs Maintenance & Alts,5005,Lightning test and inspection All Seasons,27/10/2021,0162009,255.00,Revenue,Lightning Consultants (UK) Ltd,17446,,
Chorley Borough Council,http://statistics.data.gov.uk/id/local-authority/30UE,Capital,Capital,Commercial & Property,Main Contractor,03007,Capital Expenditure,Capital,Project management services for Astley Hall Restoration project,06/10/2021,0160796,"2,875.00",Capital,Linchpin Ltd,80779,,
Chorley Borough Council,http://statistics.data.gov.uk/id/local-authority/30UE,Culture & Heritage,1036,Policy & Governance,Exhibitions & Special Events,40158,Miscellaneous Expenses,5034,Internal and External lighting supplied for G7 Event,27/10/2021,0161454,"1,999.45",Revenue,Lite Alternative,76993,,
Chorley Borough Council,http://statistics.data.gov.uk/id/local-authority/30UE,Central Support Services,1009,Policy & Governance,HR Approved Occ Health Fees,15201,Indirect Employee Expenses,5002,Counselling sessions for Staff in August 2021,20/10/2021,0161389,280.00,Revenue,Livewell Counselling Service,63084,,
Chorley Borough Council,http://statistics.data.gov.uk/id/local-authority/30UE,Central Support Services,1009,Policy & Governance,Car Leasing Payment,14100,Direct Employee Expenses,5001,VIN REDACTED,13/10/2021,0161420,"2,674.56",Revenue,Lookers Leasing Limited,78157,,
Chorley Borough Council,http://statistics.data.gov.uk/id/local-authority/30UE,Central Support Services,1009,Policy & Governance,Car Leasing Payment,14100,Direct Employee Expenses,5001,vat,13/10/2021,0161420,237.56,Revenue,Lookers Leasing Limited,78157,,
Chorley Borough Council,http://statistics.data.gov.uk/id/local-authority/30UE,Control Accounts,Control,Policy & Governance,Manual Control Account,00001,Balance Sheet,Balance,-vat,13/10/2021,0161420,-237.56,Revenue,Lookers Leasing Limited,78157,,
Chorley Borough Council,http://statistics.data.gov.uk/id/local-authority/30UE,Central Support Services,1009,Policy & Governance,Exhibitions & Special Events,40158,Miscellaneous Expenses,5034,Appearances at Chorley's Big Weekend,20/10/2021,0161612,"1,000.00",Revenue,Louby Lou Ltd,76335,,
Chorley Borough Council,http://statistics.data.gov.uk/id/local-authority/30UE,Service Management & Support,1009,Customer & Digital,Grounds Maintenance Contractor,20043,Grounds Maintenance Costs,5013,Invoice for tree works completed between dated 01/04/2021 to 02/08/2021,06/10/2021,0161248,"3,070.00",Revenue,M J Walker,62044,,
Chorley Borough Council,http://statistics.data.gov.uk/id/local-authority/30UE,Corporate Management,1008,Policy & Governance,Agency Staff,13000,Direct Employee Expenses,5001,NAME REDACTED,06/10/2021,0161098,595.77,Revenue,Matrix SCM Ltd,22128,,
Chorley Borough Council,http://statistics.data.gov.uk/id/local-authority/30UE,Corporate Management,1008,Policy & Governance,Agency Staff,13000,Direct Employee Expenses,5001,NAME REDACTED,06/10/2021,0161098,738.80,Revenue,Matrix SCM Ltd,22128,,
Chorley Borough Council,http://statistics.data.gov.uk/id/local-authority/30UE,Corporate Management,1008,Policy & Governance,Agency Staff,13000,Direct Employee Expenses,5001,NAME REDACTED,06/10/2021,0161318,577.37,Revenue,Matrix SCM Ltd,22128,,
Chorley Borough Council,http://statistics.data.gov.uk/id/local-authority/30UE,Corporate Management,1008,Policy & Governance,Agency Staff,13000,Direct Employee Expenses,5001,NAME REDACTED,06/10/2021,0161318,738.80,Revenue,Matrix SCM Ltd,22128,,
Chorley Borough Council,http://statistics.data.gov.uk/id/local-authority/30UE,Corporate Management,1008,Policy & Governance,Agency Staff,13000,Direct Employee Expenses,5001,NAME REDACTED,20/10/2021,0161409,592.09,Revenue,Matrix SCM Ltd,22128,,
Chorley Borough Council,http://statistics.data.gov.uk/id/local-authority/30UE,Corporate Management,1008,Policy & Governance,Agency Staff,13000,Direct Employee Expenses,5001,NAME REDACTED,20/10/2021,0161409,738.80,Revenue,Matrix SCM Ltd,22128,,
Chorley Borough Council,http://statistics.data.gov.uk/id/local-authority/30UE,Corporate Management,1008,Policy & Governance,Agency Staff,13000,Direct Employee Expenses,5001,NAME REDACTED,20/10/2021,0161600,551.64,Revenue,Matrix SCM Ltd,22128,,
Chorley Borough Council,http://statistics.data.gov.uk/id/local-authority/30UE,Corporate Management,1008,Policy & Governance,Agency Staff,13000,Direct Employee Expenses,5001,NAME REDACTED,20/10/2021,0161600,738.80,Revenue,Matrix SCM Ltd,22128,,
Chorley Borough Council,http://statistics.data.gov.uk/id/local-authority/30UE,Central Support Services,1009,Commercial & Property,General Repairs - Reactive,20004,Repairs Maintenance & Alts,5005,"13581, West St car park, blocked gullys",20/10/2021,0161906,280.00,Revenue,Michael Roe,78294,,
Chorley Borough Council,http://statistics.data.gov.uk/id/local-authority/30UE,Central Support Services,1009,Commercial & Property,General Repairs - Reactive,20004,Repairs Maintenance & Alts,5005,"13549, Astley Jetty, Rebuild stone landing stage and relay paving stones",20/10/2021,0161907,450.00,Revenue,Michael Roe,78294,,
Chorley Borough Council,http://statistics.data.gov.uk/id/local-authority/30UE,Central Support Services,1009,Commercial & Property,General Repairs - Reactive,20004,Repairs Maintenance & Alts,5005,"13651, union st, unblock/jet gully",20/10/2021,0161908,280.00,Revenue,Michael Roe,78294,,
Chorley Borough Council,http://statistics.data.gov.uk/id/local-authority/30UE,Central Support Services,1009,Commercial & Property,General Repairs - Reactive,20004,Repairs Maintenance & Alts,5005,"13503, market temp toilet blocked",20/10/2021,0161909,280.00,Revenue,Michael Roe,78294,,
Chorley Borough Council,http://statistics.data.gov.uk/id/local-authority/30UE,Central Support Services,1009,Commercial & Property,General Repairs - Reactive,20004,Repairs Maintenance & Alts,5005,"13656, Friday St car park gully blocked",20/10/2021,0161910,280.00,Revenue,Michael Roe,78294,,
Chorley Borough Council,http://statistics.data.gov.uk/id/local-authority/30UE,Collection Fund Revenue Accoun,,Policy & Governance,Transitional Protection,02033,Precepts & Collection Fund,Precept,trans protn contributions,27/10/2021,0161411,"3,412.00",Revenue,Ministry of Housing Communities & Local Government,16280,,
Chorley Borough Council,http://statistics.data.gov.uk/id/local-authority/30UE,Collection Fund Revenue Accoun,,Policy & Governance,NNDR Central Share,02034,Precepts & Collection Fund,Precept,central share br,27/10/2021,0161411,"1,029,011.00",Revenue,Ministry of Housing Communities & Local Government,16280,,
Chorley Borough Council,http://statistics.data.gov.uk/id/local-authority/30UE,Collection Fund Revenue Accoun,,Policy & Governance,NNDR Central Share,02034,Precepts & Collection Fund,Precept,deficit collect fund,27/10/2021,0161411,"-468,512.00",Revenue,Ministry of Housing Communities & Local Government,16280,,
Chorley Borough Council,http://statistics.data.gov.uk/id/local-authority/30UE,Collection Fund Revenue Accoun,,Policy & Governance,Transitional Protection,02033,Precepts & Collection Fund,Precept,trans protn contributions,27/10/2021,0161412,"3,412.00",Revenue,Ministry of Housing Communities & Local Government,16280,,
Chorley Borough Council,http://statistics.data.gov.uk/id/local-authority/30UE,Collection Fund Revenue Accoun,,Policy & Governance,NNDR Central Share,02034,Precepts & Collection Fund,Precept,central share BR,27/10/2021,0161412,"1,029,012.00",Revenue,Ministry of Housing Communities & Local Government,16280,,
Chorley Borough Council,http://statistics.data.gov.uk/id/local-authority/30UE,Collection Fund Revenue Accoun,,Policy & Governance,NNDR Central Share,02034,Precepts & Collection Fund,Precept,defcit collection fund,27/10/2021,0161412,"-468,512.00",Revenue,Ministry of Housing Communities & Local Government,16280,,
Chorley Borough Council,http://statistics.data.gov.uk/id/local-authority/30UE,Collection Fund Revenue Accoun,,Policy & Governance,Transitional Protection,02033,Precepts & Collection Fund,Precept,Trans Protn Contributions,27/10/2021,0162063,"3,412.00",Revenue,Ministry of Housing Communities & Local Government,16280,,
Chorley Borough Council,http://statistics.data.gov.uk/id/local-authority/30UE,Collection Fund Revenue Accoun,,Policy & Governance,NNDR Central Share,02034,Precepts & Collection Fund,Precept,Central Share BR,27/10/2021,0162063,"1,029,012.00",Revenue,Ministry of Housing Communities & Local Government,16280,,
Chorley Borough Council,http://statistics.data.gov.uk/id/local-authority/30UE,Collection Fund Revenue Accoun,,Policy & Governance,NNDR Central Share,02034,Precepts & Collection Fund,Precept,Direct Collection Fund,27/10/2021,0162063,"-468,511.00",Revenue,Ministry of Housing Communities & Local Government,16280,,
Chorley Borough Council,http://statistics.data.gov.uk/id/local-authority/30UE,Collection Fund Revenue Accoun,,Policy & Governance,Transitional Protection,02033,Precepts & Collection Fund,Precept,Transactional Relief,27/10/2021,0162063,0.00,Revenue,Ministry of Housing Communities & Local Government,16280,,
Chorley Borough Council,http://statistics.data.gov.uk/id/local-authority/30UE,Private Sector HSG Renewal,1073,Communities,External Contractor,40198,Miscellaneous Expenses,5034,Ref 5141,06/10/2021,0161195,16.75,Revenue,Mobility Care Services,70841,,
Chorley Borough Council,http://statistics.data.gov.uk/id/local-authority/30UE,Private Sector HSG Renewal,1073,Communities,External Contractor,40198,Miscellaneous Expenses,5034,Ref 4978,06/10/2021,0161195,130.00,Revenue,Mobility Care Services,70841,,
Chorley Borough Council,http://statistics.data.gov.uk/id/local-authority/30UE,Private Sector HSG Renewal,1073,Communities,External Contractor,40198,Miscellaneous Expenses,5034,Ref 4979,06/10/2021,0161195,160.00,Revenue,Mobility Care Services,70841,,
Chorley Borough Council,http://statistics.data.gov.uk/id/local-authority/30UE,Private Sector HSG Renewal,1073,Communities,External Contractor,40198,Miscellaneous Expenses,5034,Ref 4980,06/10/2021,0161195,225.50,Revenue,Mobility Care Services,70841,,
Chorley Borough Council,http://statistics.data.gov.uk/id/local-authority/30UE,Private Sector HSG Renewal,1073,Communities,External Contractor,40198,Miscellaneous Expenses,5034,Ref 4981,06/10/2021,0161195,130.00,Revenue,Mobility Care Services,70841,,
Chorley Borough Council,http://statistics.data.gov.uk/id/local-authority/30UE,Private Sector HSG Renewal,1073,Communities,External Contractor,40198,Miscellaneous Expenses,5034,Ref 5012,06/10/2021,0161195,75.25,Revenue,Mobility Care Services,70841,,
Chorley Borough Council,http://statistics.data.gov.uk/id/local-authority/30UE,Private Sector HSG Renewal,1073,Communities,External Contractor,40198,Miscellaneous Expenses,5034,Ref 5013,06/10/2021,0161195,83.75,Revenue,Mobility Care Services,70841,,
Chorley Borough Council,http://statistics.data.gov.uk/id/local-authority/30UE,Private Sector HSG Renewal,1073,Communities,External Contractor,40198,Miscellaneous Expenses,5034,Ref 5014,06/10/2021,0161195,67.00,Revenue,Mobility Care Services,70841,,
Chorley Borough Council,http://statistics.data.gov.uk/id/local-authority/30UE,Private Sector HSG Renewal,1073,Communities,External Contractor,40198,Miscellaneous Expenses,5034,Ref 5015,06/10/2021,0161195,67.00,Revenue,Mobility Care Services,70841,,
Chorley Borough Council,http://statistics.data.gov.uk/id/local-authority/30UE,Private Sector HSG Renewal,1073,Communities,External Contractor,40198,Miscellaneous Expenses,5034,Ref 5017,06/10/2021,0161195,67.00,Revenue,Mobility Care Services,70841,,
Chorley Borough Council,http://statistics.data.gov.uk/id/local-authority/30UE,Private Sector HSG Renewal,1073,Communities,External Contractor,40198,Miscellaneous Expenses,5034,Ref 5018,06/10/2021,0161195,140.00,Revenue,Mobility Care Services,70841,,
Chorley Borough Council,http://statistics.data.gov.uk/id/local-authority/30UE,Private Sector HSG Renewal,1073,Communities,External Contractor,40198,Miscellaneous Expenses,5034,Ref 5047,06/10/2021,0161195,100.00,Revenue,Mobility Care Services,70841,,
Chorley Borough Council,http://statistics.data.gov.uk/id/local-authority/30UE,Private Sector HSG Renewal,1073,Communities,External Contractor,40198,Miscellaneous Expenses,5034,Ref 5056,06/10/2021,0161195,260.00,Revenue,Mobility Care Services,70841,,
Chorley Borough Council,http://statistics.data.gov.uk/id/local-authority/30UE,Private Sector HSG Renewal,1073,Communities,External Contractor,40198,Miscellaneous Expenses,5034,Ref 5057,06/10/2021,0161195,83.75,Revenue,Mobility Care Services,70841,,
Chorley Borough Council,http://statistics.data.gov.uk/id/local-authority/30UE,Private Sector HSG Renewal,1073,Communities,External Contractor,40198,Miscellaneous Expenses,5034,Ref 5058,06/10/2021,0161195,41.87,Revenue,Mobility Care Services,70841,,
Chorley Borough Council,http://statistics.data.gov.uk/id/local-authority/30UE,Private Sector HSG Renewal,1073,Communities,External Contractor,40198,Miscellaneous Expenses,5034,Ref 5059,06/10/2021,0161195,260.00,Revenue,Mobility Care Services,70841,,
Chorley Borough Council,http://statistics.data.gov.uk/id/local-authority/30UE,Private Sector HSG Renewal,1073,Communities,External Contractor,40198,Miscellaneous Expenses,5034,Ref 5060,06/10/2021,0161195,260.00,Revenue,Mobility Care Services,70841,,
Chorley Borough Council,http://statistics.data.gov.uk/id/local-authority/30UE,Private Sector HSG Renewal,1073,Communities,External Contractor,40198,Miscellaneous Expenses,5034,Ref 5061,06/10/2021,0161195,260.00,Revenue,Mobility Care Services,70841,,
Chorley Borough Council,http://statistics.data.gov.uk/id/local-authority/30UE,Private Sector HSG Renewal,1073,Communities,External Contractor,40198,Miscellaneous Expenses,5034,Ref 5062,06/10/2021,0161195,167.50,Revenue,Mobility Care Services,70841,,
Chorley Borough Council,http://statistics.data.gov.uk/id/local-authority/30UE,Private Sector HSG Renewal,1073,Communities,External Contractor,40198,Miscellaneous Expenses,5034,Ref 5063,06/10/2021,0161195,70.35,Revenue,Mobility Care Services,70841,,
Chorley Borough Council,http://statistics.data.gov.uk/id/local-authority/30UE,Private Sector HSG Renewal,1073,Communities,External Contractor,40198,Miscellaneous Expenses,5034,Ref 5097,06/10/2021,0161195,260.00,Revenue,Mobility Care Services,70841,,
Chorley Borough Council,http://statistics.data.gov.uk/id/local-authority/30UE,Private Sector HSG Renewal,1073,Communities,External Contractor,40198,Miscellaneous Expenses,5034,Ref 5098,06/10/2021,0161195,130.00,Revenue,Mobility Care Services,70841,,
Chorley Borough Council,http://statistics.data.gov.uk/id/local-authority/30UE,Private Sector HSG Renewal,1073,Communities,External Contractor,40198,Miscellaneous Expenses,5034,Ref 5099,06/10/2021,0161195,130.00,Revenue,Mobility Care Services,70841,,
Chorley Borough Council,http://statistics.data.gov.uk/id/local-authority/30UE,Private Sector HSG Renewal,1073,Communities,External Contractor,40198,Miscellaneous Expenses,5034,Ref 5100,06/10/2021,0161195,410.00,Revenue,Mobility Care Services,70841,,
Chorley Borough Council,http://statistics.data.gov.uk/id/local-authority/30UE,Private Sector HSG Renewal,1073,Communities,External Contractor,40198,Miscellaneous Expenses,5034,Ref 5101,06/10/2021,0161195,67.00,Revenue,Mobility Care Services,70841,,
Chorley Borough Council,http://statistics.data.gov.uk/id/local-authority/30UE,Private Sector HSG Renewal,1073,Communities,External Contractor,40198,Miscellaneous Expenses,5034,Ref 5115,06/10/2021,0161195,130.00,Revenue,Mobility Care Services,70841,,
Chorley Borough Council,http://statistics.data.gov.uk/id/local-authority/30UE,Private Sector HSG Renewal,1073,Communities,External Contractor,40198,Miscellaneous Expenses,5034,Ref 5129,06/10/2021,0161195,260.00,Revenue,Mobility Care Services,70841,,
Chorley Borough Council,http://statistics.data.gov.uk/id/local-authority/30UE,Private Sector HSG Renewal,1073,Communities,External Contractor,40198,Miscellaneous Expenses,5034,Ref 5130,06/10/2021,0161195,112.75,Revenue,Mobility Care Services,70841,,
Chorley Borough Council,http://statistics.data.gov.uk/id/local-authority/30UE,Private Sector HSG Renewal,1073,Communities,External Contractor,40198,Miscellaneous Expenses,5034,Ref 5131,06/10/2021,0161195,277.75,Revenue,Mobility Care Services,70841,,
Chorley Borough Council,http://statistics.data.gov.uk/id/local-authority/30UE,Private Sector HSG Renewal,1073,Communities,External Contractor,40198,Miscellaneous Expenses,5034,Ref 5132,06/10/2021,0161195,130.00,Revenue,Mobility Care Services,70841,,
Chorley Borough Council,http://statistics.data.gov.uk/id/local-authority/30UE,Private Sector HSG Renewal,1073,Communities,External Contractor,40198,Miscellaneous Expenses,5034,Ref 5133,06/10/2021,0161195,112.75,Revenue,Mobility Care Services,70841,,
Chorley Borough Council,http://statistics.data.gov.uk/id/local-authority/30UE,Private Sector HSG Renewal,1073,Communities,External Contractor,40198,Miscellaneous Expenses,5034,Ref 5134,06/10/2021,0161195,225.50,Revenue,Mobility Care Services,70841,,
Chorley Borough Council,http://statistics.data.gov.uk/id/local-authority/30UE,Private Sector HSG Renewal,1073,Communities,External Contractor,40198,Miscellaneous Expenses,5034,Ref 5135,06/10/2021,0161195,180.00,Revenue,Mobility Care Services,70841,,
Chorley Borough Council,http://statistics.data.gov.uk/id/local-authority/30UE,Private Sector HSG Renewal,1073,Communities,External Contractor,40198,Miscellaneous Expenses,5034,ref 5271,13/10/2021,0161470,112.75,Revenue,Mobility Care Services,70841,,
Chorley Borough Council,http://statistics.data.gov.uk/id/local-authority/30UE,Private Sector HSG Renewal,1073,Communities,External Contractor,40198,Miscellaneous Expenses,5034,ref 5272,13/10/2021,0161470,130.00,Revenue,Mobility Care Services,70841,,
Chorley Borough Council,http://statistics.data.gov.uk/id/local-authority/30UE,Private Sector HSG Renewal,1073,Communities,External Contractor,40198,Miscellaneous Expenses,5034,ref 5273,13/10/2021,0161470,225.50,Revenue,Mobility Care Services,70841,,
Chorley Borough Council,http://statistics.data.gov.uk/id/local-authority/30UE,Private Sector HSG Renewal,1073,Communities,External Contractor,40198,Miscellaneous Expenses,5034,ref 5274,13/10/2021,0161470,260.00,Revenue,Mobility Care Services,70841,,
Chorley Borough Council,http://statistics.data.gov.uk/id/local-authority/30UE,Private Sector HSG Renewal,1073,Communities,External Contractor,40198,Miscellaneous Expenses,5034,ref 5288,13/10/2021,0161470,67.00,Revenue,Mobility Care Services,70841,,
Chorley Borough Council,http://statistics.data.gov.uk/id/local-authority/30UE,Private Sector HSG Renewal,1073,Communities,External Contractor,40198,Miscellaneous Expenses,5034,ref 5289,13/10/2021,0161470,83.75,Revenue,Mobility Care Services,70841,,
Chorley Borough Council,http://statistics.data.gov.uk/id/local-authority/30UE,Private Sector HSG Renewal,1073,Communities,External Contractor,40198,Miscellaneous Expenses,5034,ref 5152,13/10/2021,0161470,67.00,Revenue,Mobility Care Services,70841,,
Chorley Borough Council,http://statistics.data.gov.uk/id/local-authority/30UE,Private Sector HSG Renewal,1073,Communities,External Contractor,40198,Miscellaneous Expenses,5034,ref 5153,13/10/2021,0161470,67.00,Revenue,Mobility Care Services,70841,,
Chorley Borough Council,http://statistics.data.gov.uk/id/local-authority/30UE,Private Sector HSG Renewal,1073,Communities,External Contractor,40198,Miscellaneous Expenses,5034,ref 5172,13/10/2021,0161470,130.00,Revenue,Mobility Care Services,70841,,
Chorley Borough Council,http://statistics.data.gov.uk/id/local-authority/30UE,Private Sector HSG Renewal,1073,Communities,External Contractor,40198,Miscellaneous Expenses,5034,ref 5173,13/10/2021,0161470,130.00,Revenue,Mobility Care Services,70841,,
Chorley Borough Council,http://statistics.data.gov.uk/id/local-authority/30UE,Private Sector HSG Renewal,1073,Communities,External Contractor,40198,Miscellaneous Expenses,5034,ref 5214,13/10/2021,0161470,33.50,Revenue,Mobility Care Services,70841,,
Chorley Borough Council,http://statistics.data.gov.uk/id/local-authority/30UE,Private Sector HSG Renewal,1073,Communities,External Contractor,40198,Miscellaneous Expenses,5034,ref 5215,13/10/2021,0161470,16.75,Revenue,Mobility Care Services,70841,,
Chorley Borough Council,http://statistics.data.gov.uk/id/local-authority/30UE,Private Sector HSG Renewal,1073,Communities,External Contractor,40198,Miscellaneous Expenses,5034,ref 5221,13/10/2021,0161470,180.00,Revenue,Mobility Care Services,70841,,
Chorley Borough Council,http://statistics.data.gov.uk/id/local-authority/30UE,Private Sector HSG Renewal,1073,Communities,External Contractor,40198,Miscellaneous Expenses,5034,ref 5231,13/10/2021,0161470,45.00,Revenue,Mobility Care Services,70841,,
Chorley Borough Council,http://statistics.data.gov.uk/id/local-authority/30UE,Private Sector HSG Renewal,1073,Communities,External Contractor,40198,Miscellaneous Expenses,5034,ref 5239,13/10/2021,0161470,130.00,Revenue,Mobility Care Services,70841,,
Chorley Borough Council,http://statistics.data.gov.uk/id/local-authority/30UE,Private Sector HSG Renewal,1073,Communities,External Contractor,40198,Miscellaneous Expenses,5034,ref 5240,13/10/2021,0161470,112.75,Revenue,Mobility Care Services,70841,,
Chorley Borough Council,http://statistics.data.gov.uk/id/local-authority/30UE,Private Sector HSG Renewal,1073,Communities,External Contractor,40198,Miscellaneous Expenses,5034,ref 5241,13/10/2021,0161470,112.75,Revenue,Mobility Care Services,70841,,
Chorley Borough Council,http://statistics.data.gov.uk/id/local-authority/30UE,Private Sector HSG Renewal,1073,Communities,External Contractor,40198,Miscellaneous Expenses,5034,ref 5242,13/10/2021,0161470,112.75,Revenue,Mobility Care Services,70841,,
Chorley Borough Council,http://statistics.data.gov.uk/id/local-authority/30UE,Private Sector HSG Renewal,1073,Communities,External Contractor,40198,Miscellaneous Expenses,5034,ref 5243,13/10/2021,0161470,112.75,Revenue,Mobility Care Services,70841,,
Chorley Borough Council,http://statistics.data.gov.uk/id/local-authority/30UE,Private Sector HSG Renewal,1073,Communities,External Contractor,40198,Miscellaneous Expenses,5034,ref 5244,13/10/2021,0161470,130.00,Revenue,Mobility Care Services,70841,,
Chorley Borough Council,http://statistics.data.gov.uk/id/local-authority/30UE,Private Sector HSG Renewal,1073,Communities,External Contractor,40198,Miscellaneous Expenses,5034,ref 5245,13/10/2021,0161470,180.00,Revenue,Mobility Care Services,70841,,
Chorley Borough Council,http://statistics.data.gov.uk/id/local-authority/30UE,Private Sector HSG Renewal,1073,Communities,External Contractor,40198,Miscellaneous Expenses,5034,ref 5246,13/10/2021,0161470,980.00,Revenue,Mobility Care Services,70841,,
Chorley Borough Council,http://statistics.data.gov.uk/id/local-authority/30UE,Private Sector HSG Renewal,1073,Communities,External Contractor,40198,Miscellaneous Expenses,5034,ref 5248,13/10/2021,0161470,67.00,Revenue,Mobility Care Services,70841,,
Chorley Borough Council,http://statistics.data.gov.uk/id/local-authority/30UE,Private Sector HSG Renewal,1073,Communities,External Contractor,40198,Miscellaneous Expenses,5034,ref 5249,13/10/2021,0161470,130.00,Revenue,Mobility Care Services,70841,,
Chorley Borough Council,http://statistics.data.gov.uk/id/local-authority/30UE,Private Sector HSG Renewal,1073,Communities,External Contractor,40198,Miscellaneous Expenses,5034,ref 5256,13/10/2021,0161470,67.00,Revenue,Mobility Care Services,70841,,
Chorley Borough Council,http://statistics.data.gov.uk/id/local-authority/30UE,Private Sector HSG Renewal,1073,Communities,External Contractor,40198,Miscellaneous Expenses,5034,ref 5257,13/10/2021,0161470,67.00,Revenue,Mobility Care Services,70841,,
Chorley Borough Council,http://statistics.data.gov.uk/id/local-authority/30UE,Private Sector HSG Renewal,1073,Communities,External Contractor,40198,Miscellaneous Expenses,5034,ref 5258,13/10/2021,0161470,117.25,Revenue,Mobility Care Services,70841,,
Chorley Borough Council,http://statistics.data.gov.uk/id/local-authority/30UE,Development Control,1091,Policy & Governance,Legal Fees,40171,Miscellaneous Expenses,5034,counsel fees for South Lodge aka Wigan Lodge,20/10/2021,0161160,"2,250.00",Revenue,Mr Ian Ponter,19968,,
Chorley Borough Council,http://statistics.data.gov.uk/id/local-authority/30UE,Development Control,1091,Policy & Governance,Legal Fees,40171,Miscellaneous Expenses,5034,Fee Note - 13/09/2021 - professional fees for representation at Town Lane and Tincklers Lane public inquiry,20/10/2021,0161231,"1,800.00",Revenue,Mr Ian Ponter,19968,,
Chorley Borough Council,http://statistics.data.gov.uk/id/local-authority/30UE,Development Control,1091,Policy & Governance,Legal Fees,40171,Miscellaneous Expenses,5034,"Fee Note - 13/08/2021 - 1350 (11.08.21 - advising in conference) - 07/09/2021 -24,600 (17.08.21 Inquiry plus refreshers)",20/10/2021,0161232,"24,600.00",Revenue,Mr Ian Ponter,19968,,
Chorley Borough Council,http://statistics.data.gov.uk/id/local-authority/30UE,Development Control,1091,Policy & Governance,Legal Fees,40171,Miscellaneous Expenses,5034,"Fee Note - 13/08/2021 - 1350 (11.08.21 - advising in conference) - 07/09/2021 -24,600 (17.08.21 Inquiry plus refreshers)",20/10/2021,0161244,"1,350.00",Revenue,Mr Ian Ponter,19968,,
Chorley Borough Council,http://statistics.data.gov.uk/id/local-authority/30UE,Tourism,1039,Policy & Governance,Miscellaneous Expenses,40200,Miscellaneous Expenses,5034,CFS Prize money,27/10/2021,0162045,400.00,Revenue,Mrs S E Goodwill t/a Primrose Bank,83815,,
Chorley Borough Council,http://statistics.data.gov.uk/id/local-authority/30UE,Central Support Services,1009,Policy & Governance,Exhibitions & Special Events,40158,Miscellaneous Expenses,5034,"12PP A5 SELF COVER CHORLEYS BIG WEEKEND PROGRAMME, PDF proof, 4 colour process both sides, 115gsm Silk",20/10/2021,0161242,472.00,Revenue,N B Colour Print Ltd,17917,,
Chorley Borough Council,http://statistics.data.gov.uk/id/local-authority/30UE,Open Spaces,1038,Communities,Grounds Maintenance Contractor,20043,Grounds Maintenance Costs,5013,"N8 WATER'S EDGE MEADOW MIXTURE, 2 kg of N4F SUMMER FLOWERING BUTTERFLY & BEE MIX FLOWERS ONLY",06/10/2021,0161123,557.50,Revenue,Naturescape,62058,,
Chorley Borough Council,http://statistics.data.gov.uk/id/local-authority/30UE,Business Support,1095,Commercial & Property,Security Service,40062,Services,5027,"Site Security Services at Market Walk Shopping Centre, 5pm-midnight 7 days. 1st April 2021 to End March 2022",06/10/2021,0161218,575.75,Revenue,New Concept Security NW Ltd T/A New Concept Goup,80488,,
Chorley Borough Council,http://statistics.data.gov.uk/id/local-authority/30UE,Business Support,1095,Commercial & Property,Security Service,40062,Services,5027,"Site Security Services at Market Walk Shopping Centre, 5pm-midnight 7 days. 1st April 2021 to End March 2022",20/10/2021,0161856,904.75,Revenue,New Concept Security NW Ltd T/A New Concept Goup,80488,,
Chorley Borough Council,http://statistics.data.gov.uk/id/local-authority/30UE,Central Support Services,1009,Policy & Governance,Exhibitions & Special Events,40158,Miscellaneous Expenses,5034,"Chorleys Big weekend security, 8 Security Staff Friday 1 October 5.30pm-10.30pm and Saturday 2 October 5.30pm-10.30pm.",20/10/2021,0161876,"1,080.00",Revenue,New Concept Security NW Ltd T/A New Concept Goup,80488,,
Chorley Borough Council,http://statistics.data.gov.uk/id/local-authority/30UE,Tourism,1039,Policy & Governance,Miscellaneous Expenses,40200,Miscellaneous Expenses,5034,"Chorley Flower Show - Hire executive toilet trailer, Hire self contained flush toilet unit, Stand alone self contained hand wash",13/10/2021,0161344,"3,490.00",Revenue,Northwest Portables,74432,,
Chorley Borough Council,http://statistics.data.gov.uk/id/local-authority/30UE,Tourism,1039,Policy & Governance,Miscellaneous Expenses,40200,Miscellaneous Expenses,5034,"Chorley Flower Show 2021 - Hire executive toilet trailer, Mains electricity connection required, must be available",13/10/2021,0161345,"2,005.00",Revenue,Northwest Portables,74432,,
Chorley Borough Council,http://statistics.data.gov.uk/id/local-authority/30UE,Corporate Management,1008,Policy & Governance,Miscellaneous Expenses,40200,Miscellaneous Expenses,5034,Additional Portaloos to help facilitate a safe Chorley Flower Show event,27/10/2021,0161992,"1,120.00",Revenue,Northwest Portables,74432,,
Chorley Borough Council,http://statistics.data.gov.uk/id/local-authority/30UE,Open Spaces,1038,Commercial & Property,Electricity,20013,Energy Costs,5006,HARPERS LANE RECREAT,06/10/2021,0160753,20.24,Revenue,Npower Commercial Gas,16814,,
Chorley Borough Council,http://statistics.data.gov.uk/id/local-authority/30UE,Service Management & Support,1009,Commercial & Property,Electricity,20013,Energy Costs,5006,GILLETT PLAYING FIEL,06/10/2021,0160753,7.45,Revenue,Npower Commercial Gas,16814,,
Chorley Borough Council,http://statistics.data.gov.uk/id/local-authority/30UE,Open Spaces,1038,Commercial & Property,Electricity,20013,Energy Costs,5006,KING GEORGE V PLAYING FIELDS,06/10/2021,0160753,9.46,Revenue,Npower Commercial Gas,16814,,
Chorley Borough Council,http://statistics.data.gov.uk/id/local-authority/30UE,Service Management Support,1009,Commercial & Property,Electricity,20013,Energy Costs,5006,ASTLEY HALL FARM HOU,06/10/2021,0160753,266.36,Revenue,Npower Commercial Gas,16814,,
Chorley Borough Council,http://statistics.data.gov.uk/id/local-authority/30UE,Culture & Heritage,1036,Commercial & Property,Electricity,20013,Energy Costs,5006,ASTLEY HALL,06/10/2021,0160753,"-1,098.06",Revenue,Npower Commercial Gas,16814,,
Chorley Borough Council,http://statistics.data.gov.uk/id/local-authority/30UE,Recreation & Sport,1037,Commercial & Property,Electricity,20013,Energy Costs,5006,EAVES GREEN COMMUNIT,06/10/2021,0160753,104.63,Revenue,Npower Commercial Gas,16814,,
Chorley Borough Council,http://statistics.data.gov.uk/id/local-authority/30UE,Community Development,1097,Commercial & Property,Electricity,20013,Energy Costs,5006,FIRST FLOOR INFORMAT,06/10/2021,0160753,38.08,Revenue,Npower Commercial Gas,16814,,
Chorley Borough Council,http://statistics.data.gov.uk/id/local-authority/30UE,Community Development,1097,Commercial & Property,Electricity,20013,Energy Costs,5006,TOP FLOOR INFORMATIO,06/10/2021,0160753,26.57,Revenue,Npower Commercial Gas,16814,,
Chorley Borough Council,http://statistics.data.gov.uk/id/local-authority/30UE,Community Development,1097,Commercial & Property,Electricity,20013,Energy Costs,5006,GROUND FLOOR INFORMA,06/10/2021,0160753,30.31,Revenue,Npower Commercial Gas,16814,,
Chorley Borough Council,http://statistics.data.gov.uk/id/local-authority/30UE,Open Spaces,1038,Commercial & Property,Electricity,20013,Energy Costs,5006,CORONATION RECREATIO,06/10/2021,0160753,22.98,Revenue,Npower Commercial Gas,16814,,
Chorley Borough Council,http://statistics.data.gov.uk/id/local-authority/30UE,Recreation & Sport,1037,Commercial & Property,Electricity,20013,Energy Costs,5006,ASTLEY VILLAGE COMMU,06/10/2021,0160753,54.74,Revenue,Npower Commercial Gas,16814,,
Chorley Borough Council,http://statistics.data.gov.uk/id/local-authority/30UE,Open Spaces,1038,Commercial & Property,Electricity,20013,Energy Costs,5006,ASTLEY HALL COACH HO,06/10/2021,0160753,"1,379.88",Revenue,Npower Commercial Gas,16814,,
Chorley Borough Council,http://statistics.data.gov.uk/id/local-authority/30UE,Culture & Heritage,1036,Commercial & Property,Electricity,20013,Energy Costs,5006,ASTLEY HALL COTTAGE,06/10/2021,0160753,65.81,Revenue,Npower Commercial Gas,16814,,
Chorley Borough Council,http://statistics.data.gov.uk/id/local-authority/30UE,Cemetery Cremation & Mortuary,1041,Commercial & Property,Electricity,20013,Energy Costs,5006,CEMETERIES OFFICE,06/10/2021,0160753,40.08,Revenue,Npower Commercial Gas,16814,,
Chorley Borough Council,http://statistics.data.gov.uk/id/local-authority/30UE,Open Spaces,1038,Commercial & Property,Electricity,20013,Energy Costs,5006,ASTLEY PARK PAVILION/CHANGING,06/10/2021,0160753,173.34,Revenue,Npower Commercial Gas,16814,,
Chorley Borough Council,http://statistics.data.gov.uk/id/local-authority/30UE,Economic Development,1096,Commercial & Property,Electricity,20013,Energy Costs,5006,"MARKET COMPACTOR, RE",06/10/2021,0160753,13.06,Revenue,Npower Commercial Gas,16814,,
Chorley Borough Council,http://statistics.data.gov.uk/id/local-authority/30UE,Open Spaces,1038,Commercial & Property,Electricity,20013,Energy Costs,5006,KING GEORGE V CHANGING ROOMS,06/10/2021,0160753,12.63,Revenue,Npower Commercial Gas,16814,,
Chorley Borough Council,http://statistics.data.gov.uk/id/local-authority/30UE,Homelessness,1075,Commercial & Property,Electricity,20013,Energy Costs,5006,COTSWOLD HOUSE COMMUNAL ROOMS,06/10/2021,0160753,46.54,Revenue,Npower Commercial Gas,16814,,
Chorley Borough Council,http://statistics.data.gov.uk/id/local-authority/30UE,Homelessness,1075,Commercial & Property,Electricity,20013,Energy Costs,5006,COTSWOLD HOUSE TWO STORY WING,06/10/2021,0160753,25.92,Revenue,Npower Commercial Gas,16814,,
Chorley Borough Council,http://statistics.data.gov.uk/id/local-authority/30UE,Homelessness,1075,Commercial & Property,Electricity,20013,Energy Costs,5006,COTSWOLD HOUSE SINGL,06/10/2021,0160753,101.03,Revenue,Npower Commercial Gas,16814,,
Chorley Borough Council,http://statistics.data.gov.uk/id/local-authority/30UE,Business Support,1095,Commercial & Property,Electricity,20013,Energy Costs,5006,LANDLORDS COMMUNAL AREA,06/10/2021,0160753,650.71,Revenue,Npower Commercial Gas,16814,,
Chorley Borough Council,http://statistics.data.gov.uk/id/local-authority/30UE,Recreation & Sport,1037,Commercial & Property,Electricity,20013,Energy Costs,5006,BUTTERMERE COMMUNITY,06/10/2021,0160753,87.66,Revenue,Npower Commercial Gas,16814,,
Chorley Borough Council,http://statistics.data.gov.uk/id/local-authority/30UE,Recreation & Sport,1037,Commercial & Property,Electricity,20013,Energy Costs,5006,LANCASTER WAY COMMUN,06/10/2021,0160753,81.91,Revenue,Npower Commercial Gas,16814,,
Chorley Borough Council,http://statistics.data.gov.uk/id/local-authority/30UE,Parking Services,1066,Commercial & Property,Electricity,20013,Energy Costs,5006,CAR PARK UNION ST,06/10/2021,0160753,647.53,Revenue,Npower Commercial Gas,16814,,
Chorley Borough Council,http://statistics.data.gov.uk/id/local-authority/30UE,Parking Services,1066,Commercial & Property,Electricity,20013,Energy Costs,5006,ARLEY STREET CAR PAR,06/10/2021,0160753,7.45,Revenue,Npower Commercial Gas,16814,,
Chorley Borough Council,http://statistics.data.gov.uk/id/local-authority/30UE,Parking Services,1066,Commercial & Property,Electricity,20013,Energy Costs,5006,OAK HOUSE CAR PARK,06/10/2021,0160753,82.81,Revenue,Npower Commercial Gas,16814,,
Chorley Borough Council,http://statistics.data.gov.uk/id/local-authority/30UE,Parking Services,1066,Commercial & Property,Electricity,20013,Energy Costs,5006,FRIDAY STREET,06/10/2021,0160753,264.98,Revenue,Npower Commercial Gas,16814,,
Chorley Borough Council,http://statistics.data.gov.uk/id/local-authority/30UE,Central Support Services,1009,Commercial & Property,Electricity,20013,Energy Costs,5006,CCTV FEEDER PILLAR STEELEY LANE,06/10/2021,0160753,11.48,Revenue,Npower Commercial Gas,16814,,
Chorley Borough Council,http://statistics.data.gov.uk/id/local-authority/30UE,Central Support Services,1009,Commercial & Property,Electricity,20013,Energy Costs,5006,CCTV FEEDER PILLAR 2 MOSS LANE,06/10/2021,0160753,13.99,Revenue,Npower Commercial Gas,16814,,
Chorley Borough Council,http://statistics.data.gov.uk/id/local-authority/30UE,Open Spaces,1038,Commercial & Property,Electricity,20013,Energy Costs,5006,RANGLETTS RECREATION,06/10/2021,0160753,20.82,Revenue,Npower Commercial Gas,16814,,
Chorley Borough Council,http://statistics.data.gov.uk/id/local-authority/30UE,Central Support Services,1009,Commercial & Property,Electricity,20013,Energy Costs,5006,CCTV FEEDER PILLAR 2 MOSS LANE 1,06/10/2021,0160753,9.63,Revenue,Npower Commercial Gas,16814,,
Chorley Borough Council,http://statistics.data.gov.uk/id/local-authority/30UE,Business Support,1095,Commercial & Property,Electricity,20013,Energy Costs,5006,UNIT 2 MARKET WALK EXTENSION,06/10/2021,0160753,823.78,Revenue,Npower Commercial Gas,16814,,
Chorley Borough Council,http://statistics.data.gov.uk/id/local-authority/30UE,Central Support Services,1009,Commercial & Property,Electricity,20013,Energy Costs,5006,"CCTV SPENDMORE LANE, BAKER ST JNCT",06/10/2021,0160753,7.45,Revenue,Npower Commercial Gas,16814,,
Chorley Borough Council,http://statistics.data.gov.uk/id/local-authority/30UE,Central Support Services,1009,Commercial & Property,Electricity,20013,Energy Costs,5006,TOWN HALL,06/10/2021,0161193,"2,269.66",Revenue,Npower Commercial Gas,16814,,
Chorley Borough Council,http://statistics.data.gov.uk/id/local-authority/30UE,Business Support,1095,Commercial & Property,Electricity,20013,Energy Costs,5006,"LANDLORD, PRIMROSE GARDENS",06/10/2021,0161193,"1,127.39",Revenue,Npower Commercial Gas,16814,,
Chorley Borough Council,http://statistics.data.gov.uk/id/local-authority/30UE,Business Support,1095,Commercial & Property,Electricity,20013,Energy Costs,5006,"STRAWBERRY FIELDS, DIGITAL HUB",06/10/2021,0161193,"3,641.81",Revenue,Npower Commercial Gas,16814,,
Chorley Borough Council,http://statistics.data.gov.uk/id/local-authority/30UE,Recreation & Sport,1037,Commercial & Property,Electricity,20013,Energy Costs,5006,CLAYTON GREEN SPORTS CENTRE,06/10/2021,0161193,997.54,Revenue,Npower Commercial Gas,16814,,
Chorley Borough Council,http://statistics.data.gov.uk/id/local-authority/30UE,Central Support Services,1009,Commercial & Property,Electricity,20013,Energy Costs,5006,"CIVIC OFFICES, UNION STREET",06/10/2021,0161194,"3,188.76",Revenue,Npower Commercial Gas,16814,,
Chorley Borough Council,http://statistics.data.gov.uk/id/local-authority/30UE,Central Support Services,1009,Commercial & Property,Electricity,20013,Energy Costs,5006,BENGAL STREET DEPOT,06/10/2021,0161194,798.16,Revenue,Npower Commercial Gas,16814,,
Chorley Borough Council,http://statistics.data.gov.uk/id/local-authority/30UE,Recreation & Sport,1037,Commercial & Property,Electricity,20013,Energy Costs,5006,CLAYTON BROOK VILLAGE HALL,06/10/2021,0161194,122.13,Revenue,Npower Commercial Gas,16814,,
Chorley Borough Council,http://statistics.data.gov.uk/id/local-authority/30UE,Central Support Services,1009,Commercial & Property,Electricity,20013,Energy Costs,5006,WEST WAY SPORTS HUB,06/10/2021,0161194,33.84,Revenue,Npower Commercial Gas,16814,,
Chorley Borough Council,http://statistics.data.gov.uk/id/local-authority/30UE,Recreation & Sport,1037,Commercial & Property,Electricity,20013,Energy Costs,5006,ALL SEASONS LEISURE CENTRE,06/10/2021,0161194,"7,437.28",Revenue,Npower Commercial Gas,16814,,
Chorley Borough Council,http://statistics.data.gov.uk/id/local-authority/30UE,Recreation & Sport,1037,Commercial & Property,Electricity,20013,Energy Costs,5006,BRINSCALL BATHS,06/10/2021,0161194,"1,200.08",Revenue,Npower Commercial Gas,16814,,
Chorley Borough Council,http://statistics.data.gov.uk/id/local-authority/30UE,Service Management & Support,1009,Customer & Digital,Supplies-Grounds Maintenance,40025,"Equipment, Furniture & Materia",5023,"Renovate, strip and paint six green metal benches",20/10/2021,0161388,720.00,Revenue,Nuchoice Limited,75454,,
Chorley Borough Council,http://statistics.data.gov.uk/id/local-authority/30UE,Service Management & Support,1009,Customer & Digital,Supplies-Grounds Maintenance,40025,"Equipment, Furniture & Materia",5023,As per invoice number 20922,20/10/2021,0161504,319.00,Revenue,P D M Components,19204,,
Chorley Borough Council,http://statistics.data.gov.uk/id/local-authority/30UE,Planning Policy,1092,Communities,Operational Employees Salaries,10000,Direct Employee Expenses,5001,Temporary Agency Staff (Standard Hours) for work on the Central Lancashire Local Plan,06/10/2021,0161181,"1,619.38",Revenue,Park Avenue Recruitment Ltd,82305,,
Chorley Borough Council,http://statistics.data.gov.uk/id/local-authority/30UE,Planning Policy,1092,Communities,Operational Employees Salaries,10000,Direct Employee Expenses,5001,Temporary Agency Staff (Standard Hours) for work on the Central Lancashire Local Plan,06/10/2021,0161216,"1,621.50",Revenue,Park Avenue Recruitment Ltd,82305,,
Chorley Borough Council,http://statistics.data.gov.uk/id/local-authority/30UE,Planning Policy,1092,Communities,Operational Employees Salaries,10000,Direct Employee Expenses,5001,Temporary Agency Staff (Standard Hours) for work on the Central Lancashire Local Plan,06/10/2021,0161217,"1,472.00",Revenue,Park Avenue Recruitment Ltd,82305,,
Chorley Borough Council,http://statistics.data.gov.uk/id/local-authority/30UE,Planning Policy,1092,Communities,Operational Employees Salaries,10000,Direct Employee Expenses,5001,Temporary Agency Staff (Standard Hours) for work on the Central Lancashire Local Plan,06/10/2021,0161219,"1,264.20",Revenue,Park Avenue Recruitment Ltd,82305,,
Chorley Borough Council,http://statistics.data.gov.uk/id/local-authority/30UE,Planning Policy,1092,Communities,Operational Employees Salaries,10000,Direct Employee Expenses,5001,Temporary Agency Staff (Standard Hours) for work on the Central Lancashire Local Plan,20/10/2021,0161565,"1,658.08",Revenue,Park Avenue Recruitment Ltd,82305,,
Chorley Borough Council,http://statistics.data.gov.uk/id/local-authority/30UE,Planning Policy,1092,Communities,Operational Employees Salaries,10000,Direct Employee Expenses,5001,Temporary Agency Staff (Standard Hours) for work on the Central Lancashire Local Plan,20/10/2021,0161598,"1,391.50",Revenue,Park Avenue Recruitment Ltd,82305,,
Chorley Borough Council,http://statistics.data.gov.uk/id/local-authority/30UE,Capital,Capital,Communities,Other Capital Grants/Loans,03000,Capital Expenditure,Capital,2nd phase of development project at Duxbury Park. 50% of value to be repaid through increased rent collection,13/10/2021,0161537,"42,000.00",Capital,Parkwood Leisure,82926,,
Chorley Borough Council,http://statistics.data.gov.uk/id/local-authority/30UE,Capital,Capital,Communities,Other Capital Grants/Loans,03000,Capital Expenditure,Capital,2nd phase of development project at Duxbury Park. 50% of value to be repaid through increased rent collection,13/10/2021,0161538,"21,000.00",Capital,Parkwood Leisure,82926,,
Chorley Borough Council,http://statistics.data.gov.uk/id/local-authority/30UE,Capital,Capital,Communities,Other Capital Grants/Loans,03000,Capital Expenditure,Capital,Additional costs (within overall cost agreed) for Play Area development project 2021,20/10/2021,0161886,"12,497.00",Capital,Parkwood Leisure,82926,,
Chorley Borough Council,http://statistics.data.gov.uk/id/local-authority/30UE,Culture & Heritage,1036,Policy & Governance,Cleaning Materials,40019,"Equipment, Furniture & Materia",5023,"AD204 Jumbo Toilet Roll, DG280-S Nitrile Powder Free Gloves S Box of 200, DG280-M Nitrile Powder Free Gloves M Box of 200",13/10/2021,0161384,356.18,Revenue,Pattersons Holdings (Bristol),77537,,
Chorley Borough Council,http://statistics.data.gov.uk/id/local-authority/30UE,Central Support Services,1009,Policy & Governance,Exhibitions & Special Events,40158,Miscellaneous Expenses,5034,Photography at events throughout 2021,13/10/2021,0161481,300.00,Revenue,Paul Heyes Photographer,20909,,
Chorley Borough Council,http://statistics.data.gov.uk/id/local-authority/30UE,Central Support Services,1009,Policy & Governance,Mayoral Hospitality,40123,Expenses,5030,Mayor's Civic Dinner on 10th September 2021: DJ - 130 Video wall and associated equipment (50% discount) - 250,13/10/2021,0161330,380.00,Revenue,Paul K Sound & Vision,16607,,
Chorley Borough Council,http://statistics.data.gov.uk/id/local-authority/30UE,Central Support Services,1009,Policy & Governance,Exhibitions & Special Events,40158,Miscellaneous Expenses,5034,"Staging, PA, Sound Engineers, Set up, take down and all associated cables.",13/10/2021,0161485,"5,660.00",Revenue,Paul K Sound & Vision,16607,,
Chorley Borough Council,http://statistics.data.gov.uk/id/local-authority/30UE,Other Short Term Creditors,,Policy & Governance,General Balances,00100,Balance Sheet,Balance,People Pension ERs & EEs July 21,27/10/2021,0162130,"1,945.30",Revenue,Peoples Pension B&CE,81827,,
Chorley Borough Council,http://statistics.data.gov.uk/id/local-authority/30UE,Central Support Services,1009,Commercial & Property,Professional Fees,40063,Services,5027,Extension to professional services,13/10/2021,0161358,"10,400.00",Revenue,Perfect Circle JV Ltd,76438,,
Chorley Borough Council,http://statistics.data.gov.uk/id/local-authority/30UE,Service Management & Support,1009,Customer & Digital,Diesel/Derv,30007,Direct Transport Costs,5016,"As per chest, 6200 litres of Diesel, 2000 litres of gas oil, Delivery to Bengal street depot 27th Monday",20/10/2021,0161240,"5,987.37",Revenue,Pilkington Oils,18075,,
Chorley Borough Council,http://statistics.data.gov.uk/id/local-authority/30UE,Service Management & Support,1009,Customer & Digital,Diesel/Derv,30007,Direct Transport Costs,5016,"As per chest, 6200 litres of Diesel, 2000 litres of gas oil, Delivery to Bengal street depot 27th Monday",20/10/2021,0161241,"1,300.00",Revenue,Pilkington Oils,18075,,
Chorley Borough Council,http://statistics.data.gov.uk/id/local-authority/30UE,Precepts and Collection Fund,Precepts,Policy & Governance,LPA Precept,02010,Precepts & Collection Fund,Precept,PCC council tax precept,27/10/2021,0161324,"849,159.00",Revenue,Police & Crime Commissioner,17438,,
Chorley Borough Council,http://statistics.data.gov.uk/id/local-authority/30UE,Precepts and Collection Fund,Precepts,Policy & Governance,LPA Precept,02010,Precepts & Collection Fund,Precept,PCC council tax precept,27/10/2021,0161325,"849,159.00",Revenue,Police & Crime Commissioner,17438,,
Chorley Borough Council,http://statistics.data.gov.uk/id/local-authority/30UE,Precepts and Collection Fund,Precepts,Policy & Governance,LPA Precept,02010,Precepts & Collection Fund,Precept,PCC Council Tax Precept,27/10/2021,0162056,"849,149.49",Revenue,Police & Crime Commissioner,17438,,
Chorley Borough Council,http://statistics.data.gov.uk/id/local-authority/30UE,Central Support Services,1009,Commercial & Property,General Repairs - Reactive,20004,Repairs Maintenance & Alts,5005,"Brinscall Baths, Callout (Standard, Contract) Re: Controller no flow (sediment blockage) Re: New probes needed, 3 x hrs labour",27/10/2021,0162108,780.78,Revenue,Pool Technical Services Ltd,81000,,
Chorley Borough Council,http://statistics.data.gov.uk/id/local-authority/30UE,Central Support Services,1009,Policy & Governance,Exhibitions & Special Events,40158,Miscellaneous Expenses,5034,"Banners and signs for Bonfire night, 3x 3m x 1m, 1x 3660 x 880 Regular PVC Banner, hemmed and eyelets (3660 x 880)",20/10/2021,0161878,268.68,Revenue,Poppy Signs Ltd,21898,,
Chorley Borough Council,http://statistics.data.gov.uk/id/local-authority/30UE,Capital,Capital,Communities,Grants,03002,Capital Expenditure,Capital,Provision of Handyperson service in Q3 2021/22 (1st October 2021 to 31st December 2021),20/10/2021,0161880,"6,250.00",Capital,Preston Care and Repair,50018,,
Chorley Borough Council,http://statistics.data.gov.uk/id/local-authority/30UE,Elections,1012,Policy & Governance,Printing,40043,"Printing, Stationery & General",5026,Annual Canvass 2021 - ITR's,06/10/2021,0161350,"1,269.77",Revenue,Print Image Network,21171,,
Chorley Borough Council,http://statistics.data.gov.uk/id/local-authority/30UE,Elections,1012,Policy & Governance,Printing,40043,"Printing, Stationery & General",5026,Canvass reform final reminders - canvass forms,27/10/2021,0162017,"1,266.61",Revenue,Print Image Network,21171,,
Chorley Borough Council,http://statistics.data.gov.uk/id/local-authority/30UE,Other Short Term Creditors,,Policy & Governance,General Balances,00100,Balance Sheet,Balance,Salary Deductions,27/10/2021,0162126,"3,774.00",Revenue,PRUDENTIAL,18178,,
Chorley Borough Council,http://statistics.data.gov.uk/id/local-authority/30UE,Interest Payable on Debt,1020,Policy & Governance,Interest Payable,09009,Interest Payments,5067,interest LN 502694- 502699,27/10/2021,0161056,"151,698.71",Revenue,Public Works Loans Board,21480,,
Chorley Borough Council,http://statistics.data.gov.uk/id/local-authority/30UE,Interest Payable on Debt,1020,Policy & Governance,Interest Payable,09009,Interest Payments,5067,interest LN 502699,27/10/2021,0161057,"291,536.74",Revenue,Public Works Loans Board,21480,,
Chorley Borough Council,http://statistics.data.gov.uk/id/local-authority/30UE,Interest Payable on Debt,1020,Policy & Governance,Interest Payable,09009,Interest Payments,5067,interest LN509689,27/10/2021,0161058,"18,122.58",Revenue,Public Works Loans Board,21480,,
Chorley Borough Council,http://statistics.data.gov.uk/id/local-authority/30UE,Interest Payable on Debt,1020,Policy & Governance,Interest Payable,09009,Interest Payments,5067,interest LN509691,27/10/2021,0161058,"18,315.00",Revenue,Public Works Loans Board,21480,,
Chorley Borough Council,http://statistics.data.gov.uk/id/local-authority/30UE,Interest Payable on Debt,1020,Policy & Governance,Interest Payable,09009,Interest Payments,5067,interest LN165470,27/10/2021,0161059,"79,267.50",Revenue,Public Works Loans Board,21480,,
Chorley Borough Council,http://statistics.data.gov.uk/id/local-authority/30UE,Regulatory Services,1048,Customer & Digital,Taxi Testing & Vehicle Safety Report,40234,Services,5027,,06/10/2021,0161334,389.10,Revenue,R.C.J Motors,63625,,
Chorley Borough Council,http://statistics.data.gov.uk/id/local-authority/30UE,Cemetery Cremation & Mortuary,1041,Customer & Digital,General Repairs - Reactive,20004,Repairs Maintenance & Alts,5005,"Repair a memorial stone, Chorley Cemetery",20/10/2021,0161424,355.00,Revenue,Rawcliffe`s Of Chorley Ltd,17993,,
Chorley Borough Council,http://statistics.data.gov.uk/id/local-authority/30UE,Capital,Capital,Communities,Grants,03002,Capital Expenditure,Capital,,13/10/2021,0161398,"3,325.00",Capital,Regal Care Shower Trays Ltd,64683,,
Chorley Borough Council,http://statistics.data.gov.uk/id/local-authority/30UE,Control Accounts,Control,Policy & Governance,General Balances,00100,Balance Sheet,Balance,childcare vouchers,27/10/2021,0160439,"1,364.00",Revenue,Reward Gateway (UK) Ltd,66814,,
Chorley Borough Council,http://statistics.data.gov.uk/id/local-authority/30UE,Control Accounts,Control,Policy & Governance,General Balances,00100,Balance Sheet,Balance,ccv vouchers,27/10/2021,0161405,627.00,Revenue,Reward Gateway (UK) Ltd,66814,,
Chorley Borough Council,http://statistics.data.gov.uk/id/local-authority/30UE,Non Domestic Rates Redistribut,,Policy & Governance,Tariff to Business Rates Pool,49002,Expenditure not in NCOS,,Lancs Bus rates pool,27/10/2021,0161322,"520,257.00",Revenue,Ribble Valley Borough Council DIRECT DEBIT ONLY,21100,,
Chorley Borough Council,http://statistics.data.gov.uk/id/local-authority/30UE,Non Domestic Rates Redistribut,,Policy & Governance,Tariff to Business Rates Pool,49002,Expenditure not in NCOS,,Lancs bus rates pool,27/10/2021,0161323,"520,257.00",Revenue,Ribble Valley Borough Council DIRECT DEBIT ONLY,21100,,
Chorley Borough Council,http://statistics.data.gov.uk/id/local-authority/30UE,Non Domestic Rates Redistribut,,Policy & Governance,Tariff to Business Rates Pool,49002,Expenditure not in NCOS,,Lancs Bus Rates Pool,27/10/2021,0162067,"520,258.00",Revenue,Ribble Valley Borough Council DIRECT DEBIT ONLY,21100,,
Chorley Borough Council,http://statistics.data.gov.uk/id/local-authority/30UE,Central Support Services,1009,Commercial & Property,Professional Fees,40063,Services,5027,Marketing fees for council commercial property,27/10/2021,0162049,570.00,Revenue,Rightmove Group Ltd,77717,,
Chorley Borough Council,http://statistics.data.gov.uk/id/local-authority/30UE,Capital,Capital,Customer & Digital,Other Contractor,03012,Capital Expenditure,Capital,IP addresses,27/10/2021,0161055,832.12,Capital,Ripe NCC,77888,,
Chorley Borough Council,http://statistics.data.gov.uk/id/local-authority/30UE,Capital,Capital,Commercial & Property,Main Contractor,03007,Capital Expenditure,Capital,"Delivery of the Tatton regeneration scheme, All in accordance with the executed NEC Engineering & Construct Contract",13/10/2021,0161263,"754,228.09",Capital,Robertson CE Limited,81176,,
Chorley Borough Council,http://statistics.data.gov.uk/id/local-authority/30UE,Central Support Services,1009,Policy & Governance,HR Approved Occ Health Fees,15201,Indirect Employee Expenses,5002,Counselling sessions for staff in August 2021,06/10/2021,0160945,450.00,Revenue,Sarah Walsh,78412,,
Chorley Borough Council,http://statistics.data.gov.uk/id/local-authority/30UE,Homelessness,1075,Commercial & Property,Security Service,40062,Services,5027,In respect of concierge services at Cotswold Supported House for the period: 01/04/2021 - 31/03/2022,06/10/2021,0159577,"7,017.41",Revenue,Sector Security Services,19269,,
Chorley Borough Council,http://statistics.data.gov.uk/id/local-authority/30UE,Homelessness,1075,Commercial & Property,Security Service,40062,Services,5027,In respect of concierge services at Cotswold Supported House for the period: 01/04/2021 - 31/03/2022,06/10/2021,0160814,"7,190.98",Revenue,Sector Security Services,19269,,
Chorley Borough Council,http://statistics.data.gov.uk/id/local-authority/30UE,Tourism,1039,Policy & Governance,Miscellaneous Expenses,40200,Miscellaneous Expenses,5034,CFS prize money,27/10/2021,0162004,400.00,Revenue,Simply Flower & Foliage,83816,,
Chorley Borough Council,http://statistics.data.gov.uk/id/local-authority/30UE,Corporate Management,1008,Policy & Governance,Corp Training - Management Development,17002,Indirect Employee Expenses,5002,Leadership Development Programme  360 Feedback Sessions Cancellation fee,06/10/2021,0161118,650.00,Revenue,Soc of Local Chief Execs & Snr Mngs (Solace Group),82059,,
Chorley Borough Council,http://statistics.data.gov.uk/id/local-authority/30UE,Tourism,1039,Policy & Governance,Professional Fees,40063,Services,5027,"Boom bike and Band for Friday 30 July at Chorley Flower Show, Bike for Saturday 31 July and Sunday 1 August",06/10/2021,0159726,"2,300.00",Revenue,Sound Intervention Ltd,65504,,
Chorley Borough Council,http://statistics.data.gov.uk/id/local-authority/30UE,Business Support,1095,Commercial & Property,Fixtures & Fittings - Repair/Mtnce,20028,Fixtures and Fittings,5010,"Market Walk full canopy clean, green area on roof, Extension glass clean (including metal panels surrounding stairwell 4 door)",20/10/2021,0161915,"9,713.00",Revenue,Sparkle Window Cleaning (Michael Jennings),77989,,
Chorley Borough Council,http://statistics.data.gov.uk/id/local-authority/30UE,Control Accounts,Control,Policy & Governance,General Balances,00100,Balance Sheet,Balance,Monthly Deds from Payroll,20/10/2021,0161961,368.90,Revenue,St Catherines Hospice Promotions,72375,,
Chorley Borough Council,http://statistics.data.gov.uk/id/local-authority/30UE,Capital,Capital,Communities,Grants,03002,Capital Expenditure,Capital,ADDRESS REDACTED,06/10/2021,0161320,"2,809.00",Capital,Stannah Lift Services Ltd,80943,,
Chorley Borough Council,http://statistics.data.gov.uk/id/local-authority/30UE,Capital,Capital,Communities,Grants,03002,Capital Expenditure,Capital,ADDRESS REDACTED,06/10/2021,0161321,"6,266.00",Capital,Stannah Lift Services Ltd,80943,,
Chorley Borough Council,http://statistics.data.gov.uk/id/local-authority/30UE,Capital,Capital,Commercial & Property,Main Contractor,03007,Capital Expenditure,Capital,"Brinscall Swimming Pool, Structural Consulting Services, Assess the structural condition and advise accordingly",13/10/2021,0161510,750.00,Capital,STL Projects Ltd,83689,,
Chorley Borough Council,http://statistics.data.gov.uk/id/local-authority/30UE,Parking Services,1066,Commercial & Property,Consultants` Fees,40077,Services,5027,"Provision of Public Realm & Highway Design, Engineering services, April 2021 � January 2022, Invoiced monthly, days worked",13/10/2021,0161362,"4,213.62",Revenue,Street Civil Engineering Limited,76750,,
Chorley Borough Council,http://statistics.data.gov.uk/id/local-authority/30UE,Service Management Support,1009,Commercial & Property,Asset Maintenance Fund,20012,Repairs Maintenance & Alts,5005,cottage scaffold hire 28/05/2021 - 23/07/2021,06/10/2021,0161187,541.20,Revenue,Stringfellow Bldg Cntrctrs Ltd,17893,,
Chorley Borough Council,http://statistics.data.gov.uk/id/local-authority/30UE,Capital,Capital,Communities,Grants,03002,Capital Expenditure,Capital,ADDRESS REDACTED,06/10/2021,0161316,656.75,Capital,Stringfellow Bldg Cntrctrs Ltd,17893,,
Chorley Borough Council,http://statistics.data.gov.uk/id/local-authority/30UE,Central Support Services,1009,Policy & Governance,Mayoral Hospitality,40123,Expenses,5030,"Catering for the Mayor`s Civic Dinner on 10th September 2021: 123 guests @ 18.50, 5 Children @ 3.99, 2 Attendants @ 3.99",06/10/2021,0161188,"2,303.43",Revenue,Style Catering,66901,,
Chorley Borough Council,http://statistics.data.gov.uk/id/local-authority/30UE,Open Spaces,1038,Communities,External Contractor,40198,Miscellaneous Expenses,5034,"Large skip for Crosse Hall Allotments, PR6 9AW, delivery Thurs 16 September. NAME REDACTED to arrange opening of gate",13/10/2021,0161477,308.28,Revenue,SUEZ R&R UK LTD,17615,,
Chorley Borough Council,http://statistics.data.gov.uk/id/local-authority/30UE,Central Support Services,1009,Communities,Miscellaneous Expenses,40200,Miscellaneous Expenses,5034,"Provision of skip at White Horse Pub, Heath Charnock (Invoice number 32358739)",27/10/2021,0162018,306.39,Revenue,SUEZ R&R UK LTD,17615,,
Chorley Borough Council,http://statistics.data.gov.uk/id/local-authority/30UE,Central Support Services,1009,Commercial & Property,Planned Maintenance,20006,Repairs Maintenance & Alts,5005,"SC/1910/21 Carry out a Pendulum slip test and compile report, 8 No sample areas will be tested",27/10/2021,0162064,500.00,Revenue,Surface Consultants Ltd,82899,,
Chorley Borough Council,http://statistics.data.gov.uk/id/local-authority/30UE,Planning Policy,1092,Commercial & Property,Professional Fees,40063,Services,5027,Highways and Transport Strategy for Chorley (Stages 2 and 3),06/10/2021,0161161,"10,000.00",Revenue,Tetra Tech Environment Planning Transport Limited,76236,,
Chorley Borough Council,http://statistics.data.gov.uk/id/local-authority/30UE,Central Support Services,1009,Commercial & Property,Planned Maintenance,20006,Repairs Maintenance & Alts,5005,"Carry out site clearance, excavation, disposal, sweeping, pot-holing and surfacing as your submitted tender of 12th August.",06/10/2021,0161141,"8,860.00",Revenue,THE ASPHALT WORKS LIMITED,82101,,
Chorley Borough Council,http://statistics.data.gov.uk/id/local-authority/30UE,Business Support,1095,Commercial & Property,Security Service,40062,Services,5027,Rolling PO for the security cover service at Strawberry Fields to cover invoices between April 2021 to September 2021,13/10/2021,0161478,"6,630.68",Revenue,The ExcluSec Group Ltd,78056,,
Chorley Borough Council,http://statistics.data.gov.uk/id/local-authority/30UE,Central Support Services,1009,Commercial & Property,Agency Staff,13000,Direct Employee Expenses,5001,NAME REDACTED Estates Surveyor Fees,06/10/2021,0160799,"1,618.75",Revenue,The Oyster Partnership Ltd,81409,,
Chorley Borough Council,http://statistics.data.gov.uk/id/local-authority/30UE,Central Support Services,1009,Commercial & Property,Agency Staff,13000,Direct Employee Expenses,5001,NAME REDACTED Estates Surveyor Fees,06/10/2021,0160811,"1,883.35",Revenue,The Oyster Partnership Ltd,81409,,
Chorley Borough Council,http://statistics.data.gov.uk/id/local-authority/30UE,Central Support Services,1009,Commercial & Property,Agency Staff,13000,Direct Employee Expenses,5001,NAME REDACTED Estates Surveyor Fees,06/10/2021,0161214,"1,071.88",Revenue,The Oyster Partnership Ltd,81409,,
Chorley Borough Council,http://statistics.data.gov.uk/id/local-authority/30UE,Central Support Services,1009,Commercial & Property,Agency Staff,13000,Direct Employee Expenses,5001,NAME REDACTED Estates Surveyor Fees,06/10/2021,0161215,"2,326.85",Revenue,The Oyster Partnership Ltd,81409,,
Chorley Borough Council,http://statistics.data.gov.uk/id/local-authority/30UE,Central Support Services,1009,Commercial & Property,Agency Staff,13000,Direct Employee Expenses,5001,Estate Surveyor fees for NAME REDACTED until end of 2021,20/10/2021,0161845,"1,750.00",Revenue,The Oyster Partnership Ltd,81409,,
Chorley Borough Council,http://statistics.data.gov.uk/id/local-authority/30UE,Central Support Services,1009,Policy & Governance,Miscellaneous Expenses,40200,Miscellaneous Expenses,5034,"Printing as specified in estimate, A4 s/s 150gsm CONCEPT flyers printed from PDF supplied, 48 hour service price",06/10/2021,0161251,297.10,Revenue,The Print Quarter,17987,,
Chorley Borough Council,http://statistics.data.gov.uk/id/local-authority/30UE,Elections,1012,Policy & Governance,Publications,40054,"Printing, Stationery & General",5026,new content pages for Schofields election law (due to covid break with updates),13/10/2021,0161393,"1,399.50",Revenue,Thomson Reuters RE;Sweet & Maxwell Limited,17932,,
Chorley Borough Council,http://statistics.data.gov.uk/id/local-authority/30UE,Central Support Services,1009,Commercial & Property,Professional Fees,40063,Services,5027,Planning & Feasibility Analysis: Inception meeting with Chorley Borough Council. Detailed feasibility of national planning policy,06/10/2021,0161230,"2,000.00",Revenue,Trebbi Continuum,77723,,
Chorley Borough Council,http://statistics.data.gov.uk/id/local-authority/30UE,Central Support Services,1009,Commercial & Property,Professional Fees,40063,Services,5027,Development Viability Analysis to include: Preparation of detailed development appraisal assessing the viability,06/10/2021,0161230,"2,000.00",Revenue,Trebbi Continuum,77723,,
Chorley Borough Council,http://statistics.data.gov.uk/id/local-authority/30UE,Service Management & Support,1009,Customer & Digital,Grounds Maintenance Contractor,20043,Grounds Maintenance Costs,5013,Consultant's report for prominent Beech in Astley Park.,20/10/2021,0161461,275.00,Revenue,TREESTYLE CONSULTANCY,77078,,
Chorley Borough Council,http://statistics.data.gov.uk/id/local-authority/30UE,Service Management & Support,1009,Customer & Digital,Petrol,30005,Direct Transport Costs,5016,29 aug 21,27/10/2021,0160424,662.79,Revenue,Uk Fuels Ltd,57996,,
Chorley Borough Council,http://statistics.data.gov.uk/id/local-authority/30UE,Service Management & Support,1009,Customer & Digital,Petrol,30005,Direct Transport Costs,5016,26 sept,27/10/2021,0161290,626.53,Revenue,Uk Fuels Ltd,57996,,
Chorley Borough Council,http://statistics.data.gov.uk/id/local-authority/30UE,Central Support Services,1009,Policy & Governance,Exhibitions & Special Events,40158,Miscellaneous Expenses,5034,2 x Face Painters for Saturday 2 October 1pm - 7pm 2 x 275 = 550 total,20/10/2021,0161462,550.00,Revenue,UK Media and Events Limited,71221,,
Chorley Borough Council,http://statistics.data.gov.uk/id/local-authority/30UE,Central Support Services,1009,Customer & Digital,Service Fees,40056,Services,5027,Daily Hybrid Mail & Annual Billing for Account No. H360363,06/10/2021,0160902,"1,184.05",Revenue,UKMAIL Ltd (Mail),57758,,
Chorley Borough Council,http://statistics.data.gov.uk/id/local-authority/30UE,Control Accounts,Control,Policy & Governance,General Balances,00100,Balance Sheet,Balance,Monthly Deds from Payroll,20/10/2021,0161962,"1,661.70",Revenue,Unify Credit Union Ltd,55509,,
Chorley Borough Council,http://statistics.data.gov.uk/id/local-authority/30UE,Capital,Capital,Communities,Grants,03002,Capital Expenditure,Capital,ADDRESS REDACTED,06/10/2021,0161289,"4,790.00",Capital,UPS Building and Maintenance Ltd,76235,,
Chorley Borough Council,http://statistics.data.gov.uk/id/local-authority/30UE,Capital,Capital,Communities,Grants,03002,Capital Expenditure,Capital,ADDRESS REDACTED,13/10/2021,0161408,"6,034.30",Capital,UPS Building and Maintenance Ltd,76235,,
Chorley Borough Council,http://statistics.data.gov.uk/id/local-authority/30UE,Regulatory Services,1048,Customer & Digital,"Hackney Badges, Plates Etc.",40023,"Equipment, Furniture & Materia",5023,"VIP Tx Disc + Holder, No Smoking, 2 Colour Print x 1 pack of 50",06/10/2021,0160927,75.56,Revenue,VIP-SYSTEM LIMITED,69902,,
Chorley Borough Council,http://statistics.data.gov.uk/id/local-authority/30UE,Regulatory Services,1048,Customer & Digital,"Hackney Badges, Plates Etc.",40023,"Equipment, Furniture & Materia",5023,Chorley PHV Size 4F unique V5 (Taxi Plate) x 2 packs of 50,06/10/2021,0160927,257.08,Revenue,VIP-SYSTEM LIMITED,69902,,
Chorley Borough Council,http://statistics.data.gov.uk/id/local-authority/30UE,Regulatory Services,1048,Customer & Digital,"Hackney Badges, Plates Etc.",40023,"Equipment, Furniture & Materia",5023,Chorley PHV Size 2 x 1E Style 3_23_2 (Window Display) x 2 packs of 50,06/10/2021,0160927,50.18,Revenue,VIP-SYSTEM LIMITED,69902,,
Chorley Borough Council,http://statistics.data.gov.uk/id/local-authority/30UE,Regulatory Services,1048,Customer & Digital,"Hackney Badges, Plates Etc.",40023,"Equipment, Furniture & Materia",5023,"Harpoon Security Button, Yellow x 12 packs of 50",06/10/2021,0160927,175.80,Revenue,VIP-SYSTEM LIMITED,69902,,
Chorley Borough Council,http://statistics.data.gov.uk/id/local-authority/30UE,Regulatory Services,1048,Customer & Digital,"Hackney Badges, Plates Etc.",40023,"Equipment, Furniture & Materia",5023,"Quick Release Key Only, Clear x 2 packs of 50",06/10/2021,0160927,117.00,Revenue,VIP-SYSTEM LIMITED,69902,,
Chorley Borough Council,http://statistics.data.gov.uk/id/local-authority/30UE,Regulatory Services,1048,Customer & Digital,"Hackney Badges, Plates Etc.",40023,"Equipment, Furniture & Materia",5023,"Flexiplate, Clear, Size 4F, Type A Adhesive x 2 packs of 50",06/10/2021,0160927,277.70,Revenue,VIP-SYSTEM LIMITED,69902,,
Chorley Borough Council,http://statistics.data.gov.uk/id/local-authority/30UE,Recreation & Sport,1037,Commercial & Property,Water - Metered Supplies,20022,Water Services,5009,15/7 to 14/8/21,13/10/2021,0160749,636.30,Revenue,Water-plus,17926,,
Chorley Borough Council,http://statistics.data.gov.uk/id/local-authority/30UE,Recreation & Sport,1037,Commercial & Property,Water - Metered Supplies,20022,Water Services,5009,15/06/21 - 14/07/21,13/10/2021,0161099,162.48,Revenue,Water-plus,17926,,
Chorley Borough Council,http://statistics.data.gov.uk/id/local-authority/30UE,Recreation & Sport,1037,Commercial & Property,Water - Metered Supplies,20022,Water Services,5009,15/06/21 - 14/07/21,13/10/2021,0161099,799.95,Revenue,Water-plus,17926,,
Chorley Borough Council,http://statistics.data.gov.uk/id/local-authority/30UE,Recreation & Sport,1037,Commercial & Property,Water - Metered Supplies,20022,Water Services,5009,late payment fee,13/10/2021,0161099,70.00,Revenue,Water-plus,17926,,
Chorley Borough Council,http://statistics.data.gov.uk/id/local-authority/30UE,Recreation & Sport,1037,Commercial & Property,Water - Metered Supplies,20022,Water Services,5009,15/07/21 - 14/08/21,13/10/2021,0161100,28.33,Revenue,Water-plus,17926,,
Chorley Borough Council,http://statistics.data.gov.uk/id/local-authority/30UE,Recreation & Sport,1037,Commercial & Property,Water - Metered Supplies,20022,Water Services,5009,15/07/21 - 14/08/21 waste water,13/10/2021,0161100,731.59,Revenue,Water-plus,17926,,
Chorley Borough Council,http://statistics.data.gov.uk/id/local-authority/30UE,Recreation & Sport,1037,Commercial & Property,Water - Metered Supplies,20022,Water Services,5009,15/08/21 - 09/09/2021,13/10/2021,0161101,37.71,Revenue,Water-plus,17926,,
Chorley Borough Council,http://statistics.data.gov.uk/id/local-authority/30UE,Recreation & Sport,1037,Commercial & Property,Water - Metered Supplies,20022,Water Services,5009,15/08/21 - 09/09/2021 waste water,13/10/2021,0161101,623.08,Revenue,Water-plus,17926,,
Chorley Borough Council,http://statistics.data.gov.uk/id/local-authority/30UE,Recreation & Sport,1037,Commercial & Property,Water - Metered Supplies,20022,Water Services,5009,15/04/21 - 14/05/21,13/10/2021,0161102,162.48,Revenue,Water-plus,17926,,
Chorley Borough Council,http://statistics.data.gov.uk/id/local-authority/30UE,Recreation & Sport,1037,Commercial & Property,Water - Metered Supplies,20022,Water Services,5009,15/04/21 - 14/05/21,13/10/2021,0161102,799.95,Revenue,Water-plus,17926,,
Chorley Borough Council,http://statistics.data.gov.uk/id/local-authority/30UE,Recreation & Sport,1037,Commercial & Property,Water - Metered Supplies,20022,Water Services,5009,15/03/21 - 14/04/21,13/10/2021,0161103,176.79,Revenue,Water-plus,17926,,
Chorley Borough Council,http://statistics.data.gov.uk/id/local-authority/30UE,Recreation & Sport,1037,Commercial & Property,Water - Metered Supplies,20022,Water Services,5009,15/03/21 - 14/04/21 waste water,13/10/2021,0161103,848.56,Revenue,Water-plus,17926,,
Chorley Borough Council,http://statistics.data.gov.uk/id/local-authority/30UE,Recreation & Sport,1037,Commercial & Property,Water - Metered Supplies,20022,Water Services,5009,15/05/21 - 14/06/21,13/10/2021,0161104,169.57,Revenue,Water-plus,17926,,
Chorley Borough Council,http://statistics.data.gov.uk/id/local-authority/30UE,Recreation & Sport,1037,Commercial & Property,Water - Metered Supplies,20022,Water Services,5009,15/05/21 - 14/06/21 waste water,13/10/2021,0161104,827.76,Revenue,Water-plus,17926,,
Chorley Borough Council,http://statistics.data.gov.uk/id/local-authority/30UE,Recreation & Sport,1037,Commercial & Property,Water - Metered Supplies,20022,Water Services,5009,15-08/21 - 14/09/21,13/10/2021,0161264,676.30,Revenue,Water-plus,17926,,
Chorley Borough Council,http://statistics.data.gov.uk/id/local-authority/30UE,Recreation & Sport,1037,Commercial & Property,Water - Metered Supplies,20022,Water Services,5009,13/08/21 - 12/09/21,13/10/2021,0161266,"2,345.31",Revenue,Water-plus,17926,,
Chorley Borough Council,http://statistics.data.gov.uk/id/local-authority/30UE,Recreation & Sport,1037,Commercial & Property,Water - Metered Supplies,20022,Water Services,5009,15/06/21 - 14/07/21,13/10/2021,0161268,592.92,Revenue,Water-plus,17926,,
Chorley Borough Council,http://statistics.data.gov.uk/id/local-authority/30UE,Recreation & Sport,1037,Commercial & Property,Water - Metered Supplies,20022,Water Services,5009,15/05/21 - 14/06/21,13/10/2021,0161269,596.25,Revenue,Water-plus,17926,,
Chorley Borough Council,http://statistics.data.gov.uk/id/local-authority/30UE,Recreation & Sport,1037,Commercial & Property,Water - Metered Supplies,20022,Water Services,5009,15/04/21 - 14/05/21,13/10/2021,0161270,290.46,Revenue,Water-plus,17926,,
Chorley Borough Council,http://statistics.data.gov.uk/id/local-authority/30UE,Capital,Capital,Communities,Main Contractor,03007,Capital Expenditure,Capital,Felling of 4 ash trees as identified in Tree Survey supplied and 2 willow trees at Carr Brook Linear Park,06/10/2021,0161246,"1,185.00",Capital,Westfield Tree Services Ltd,17729,,
Chorley Borough Council,http://statistics.data.gov.uk/id/local-authority/30UE,Central Support Services,1009,Policy & Governance,Exhibitions & Special Events,40158,Miscellaneous Expenses,5034,Hire of Soft Play Centre for Picnic in the Park on Sunday 15 August. 11am - 3pm 4 hours at 150 per hour.,13/10/2021,0161463,600.00,Revenue,William Scott Harrison,83516,,
Chorley Borough Council,http://statistics.data.gov.uk/id/local-authority/30UE,Economic Development,1096,Commercial & Property,Exhibitions & Special Events,40158,Miscellaneous Expenses,5034,Transport for attendance at EVA Awards 2021. Chorley to Blackpool Winter Gardens returning at the end of the evening.,13/10/2021,0161486,350.00,Revenue,Yellow Cabs (North West Ltd),52276,,
